Workbook

Sheet JAN15
A1: CLERK OF THE COURTS
A2: BREVARD COUNTY, FLORIDA
A3: Document Source Statistics January 2015
A4: Number of Documents Filed by Case Category
A6: Case | B6: Category | D6: Total # of Documents Filed | E6: Documents Filed InCourt | F6: Documents Filed Informix | G6: Documents e-Filed | H6: Total Docs Auto-Docketed | I6: % of TOTAL InCourt | J6: % of TOTAL Informix | K6: % of TOTAL e-Filed | L6: Total % of Documents Auto Docketed
A7: AP | B7: APPEALS | D7: 83 | E7: 0 | F7: 0 | G7: 49 | H7: =E7+F7+G7 -> 49 | I7: =E7/D7 -> 0 | J7: =F7/D7 -> 0 | K7: =G7/D7 -> 0.5903614458 | L7: =SUM(I7:K7) -> 0.5903614458
A8: CA | B8: CIRCUIT CIVIL | D8: 26334 | E8: 0 | F8: 0 | G8: 17326 | H8: =E8+F8+G8 -> 17326 | I8: =E8/D8 -> 0 | J8: =F8/D8 -> 0 | K8: =G8/D8 -> 0.6579327106 | L8: =SUM(I8:K8) -> 0.6579327106
A9: SC | B9: COUNTY CIVIL SMALL CLAIMS | D9: 4219 | E9: 0 | F9: 0 | G9: 2771 | H9: 2771 | I9: 0 | J9: 0 | K9: 0.6567907087 | L9: 0.6567907087
A10: DR | B10: CIRCUIT CIVIL FAMILY | D10: 13606 | E10: 0 | F10: 0 | G10: 4768 | H10: 4768 | I10: 0 | J10: 0 | K10: 0.3504336322 | L10: 0.3504336322
A11: CP | B11: CIRCUIT CIVIL PROBATE | D11: 3624 | E11: 0 | F11: 0 | G11: 2763 | H11: 2763 | I11: 0 | J11: 0 | K11: 0.7624172185 | L11: 0.7624172185
A12: GA | B12: CIRCUIT CIVIL GUARDIANSHIP | D12: 1470 | E12: 0 | F12: 0 | G12: 1174 | H12: 1174 | I12: 0 | J12: 0 | K12: 0.7986394558 | L12: 0.7986394558
A13: MH | B13: CIRCUIT CIVIL MENTAL HEALTH | D13: 623 | E13: 0 | F13: 0 | G13: 131 | H13: 131 | I13: 0 | J13: 0 | K13: 0.2102728732 | L13: 0.2102728732
A14: CC | B14: COUNTY CIVIL | D14: 5338 | E14: 0 | F14: 0 | G14: 2522 | H14: 2522 | I14: 0 | J14: 0 | K14: 0.4724615961 | L14: 0.4724615961
A15: DP | B15: CIRCUIT JUVENILE DEPENDENCY | D15: 2613 | E15: 0 | F15: 0 | G15: 1100 | H15: 1100 | I15: 0 | J15: 0 | K15: 0.4209720628 | L15: 0.4209720628
A16: TOTAL OF CIVIL DOCUMENTS | D16: =SUM(D7:D15) -> 57910 | E16: =SUM(E7:E15) -> 0 | F16: 0 | G16: =SUM(G7:G15) -> 32604 | H16: =SUM(H7:H15) -> 32604 | I16: =E16/D16 -> 0 | J16: 0 | K16: 0.5630115697 | L16: 0.5630115697
A18: CJ | B18: CIRCUIT JUVENILE DELINQUENCY | D18: 4738 | E18: 3109 | F18: 0 | G18: 734 | H18: =SUM(E18:G18) -> 3843 | I18: =E18/D18 -> 0.6561840439 | J18: =F18/D18 -> 0 | K18: =G18/D18 -> 0.1549176868 | L18: =H18/D18 -> 0.8111017307
A19: CF | B19: CIRCUIT CRIMINAL FELONY | D19: 27452 | E19: 10551 | F19: 350 | G19: 4819 | H19: =SUM(E19:G19) -> 15720 | I19: 0.3843435815 | J19: =F19/D19 -> 0.01274952645 | K19: =G19/D19 -> 0.1755427656 | L19: =H19/D19 -> 0.5726358735
A20: MM | B20: COUNTY CRIMINAL MISDEMEANOR | D20: 15679 | E20: 9321 | F20: 146 | G20: 1856 | H20: 11323 | I20: 0.5944894445 | J20: 0.009311818356 | K20: 0.1183748964 | L20: 0.7221761592
A21: CO | B21: COUNTY ORDINANCE | D21: 73 | E21: 40 | F21: 0 | G21: 8 | H21: 48 | I21: 0.5479452055 | J21: 0 | K21: 0.1095890411 | L21: 0.6575342466
A22: MO | B22: COUNTY COURT MUNICIPAL ORDINANCE | D22: 280 | E22: 187 | F22: 12 | G22: 26 | H22: 225 | I22: 0.6678571429 | J22: 0.04285714286 | K22: 0.09285714286 | L22: 0.8035714286
A23: IN | B23: COUNTY COURT INFRACTIONS | D23: 349 | E23: 35 | F23: 0 | G23: 1 | H23: 36 | I23: 0.100286533 | J23: 0 | K23: 0.002865329513 | L23: 0.1031518625
A24: CT | B24: COUNTY CRIMINAL TRAFFIC | D24: 12911 | E24: 7435 | F24: 287 | G24: 1289 | H24: 9011 | I24: 0.575865541 | J24: 0.02222910696 | K24: 0.099837348 | L24: 0.697931996
A25: TOTAL OF CRIMINAL DOCUMENTS | D25: =SUM(D18:D24) -> 61482 | E25: =SUM(E18:E24) -> 30678 | F25: =SUM(F18:F24) -> 795 | G25: =SUM(G18:G24) -> 8733 | H25: =SUM(E25:G25) -> 40206 | I25: 0.4989753098 | J25: 0.01293061384 | K25: 0.1420415731 | L25: 0.6539474968
A27: TR | B27: COUNTY CIVIL TRAFFIC | D27: 7995 | E27: 714 | F27: 0 | G27: 216 | H27: =SUM(E27:G27) -> 930 | I27: =E27/D27 -> 0.08930581614 | J27: =F27/D27 -> 0 | K27: =G27/D27 -> 0.02701688555 | L27: =H27/D27 -> 0.1163227017
A29: TOTAL ALL COURT DOCUMENTS | D29: =D16+D25+D27 -> 127387 | E29: =E16+E25+E27 -> 31392 | F29: =F16+F25+F27 -> 795 | G29: =G16+G25+G27 -> 41553 | H29: =SUM(E29:G29) -> 73740 | I29: =E29/D29 -> 0.2464301695 | J29: =F29/D29 -> 0.006240825202 | K29: =G29/D29 -> 0.3261949806 | L29: =H29/D29 -> 0.5788659753

Sheet FEB15
A1: CLERK OF THE COURTS
A2: BREVARD COUNTY, FLORIDA
A3: Document Source Statistics February 2015
A4: Number of Documents Filed by Case Category
A6: Case | B6: Category | D6: Total # of Documents Filed | E6: Documents Filed InCourt | F6: Documents Filed Informix | G6: Documents e-Filed | H6: Total Docs Auto-Docketed | I6: % of TOTAL InCourt | J6: % of TOTAL Informix | K6: % of TOTAL e-Filed | L6: Total % of Documents Auto Docketed
A7: AP | B7: APPEALS | D7: 56 | E7: 0 | F7: 0 | G7: 34 | H7: =E7+F7+G7 -> 34 | I7: =E7/D7 -> 0 | J7: =F7/D7 -> 0 | K7: =G7/D7 -> 0.6071428571 | L7: =SUM(I7:K7) -> 0.6071428571
A8: CA | B8: CIRCUIT CIVIL | D8: 24045 | E8: 0 | F8: 0 | G8: 15773 | H8: =E8+F8+G8 -> 15773 | I8: =E8/D8 -> 0 | J8: =F8/D8 -> 0 | K8: =G8/D8 -> 0.6559783739 | L8: =SUM(I8:K8) -> 0.6559783739
A9: SC | B9: COUNTY CIVIL SMALL CLAIMS | D9: 3895 | E9: 0 | F9: 0 | G9: 2615 | H9: 2615 | I9: 0 | J9: 0 | K9: 0.6713735558 | L9: 0.6713735558
A10: DR | B10: CIRCUIT CIVIL FAMILY | D10: 13868 | E10: 0 | F10: 0 | G10: 5031 | H10: 5031 | I10: 0 | J10: 0 | K10: 0.3627776175 | L10: 0.3627776175
A11: CP | B11: CIRCUIT CIVIL PROBATE | D11: 4042 | E11: 0 | F11: 0 | G11: 3239 | H11: 3239 | I11: 0 | J11: 0 | K11: 0.8013359723 | L11: 0.8013359723
A12: GA | B12: CIRCUIT CIVIL GUARDIANSHIP | D12: 1442 | E12: 0 | F12: 0 | G12: 1134 | H12: 1134 | I12: 0 | J12: 0 | K12: 0.786407767 | L12: 0.786407767
A13: MH | B13: CIRCUIT CIVIL MENTAL HEALTH | D13: 888 | E13: 0 | F13: 0 | G13: 244 | H13: 244 | I13: 0 | J13: 0 | K13: 0.2747747748 | L13: 0.2747747748
A14: CC | B14: COUNTY CIVIL | D14: 4565 | E14: 0 | F14: 0 | G14: 2259 | H14: 2259 | I14: 0 | J14: 0 | K14: 0.4948521358 | L14: 0.4948521358
A15: DP | B15: CIRCUIT JUVENILE DEPENDENCY | D15: 2504 | E15: 0 | F15: 0 | G15: 1028 | H15: 1028 | I15: 0 | J15: 0 | K15: 0.410543131 | L15: 0.410543131
A16: TOTAL OF CIVIL DOCUMENTS | D16: =SUM(D7:D15) -> 55305 | E16: =SUM(E7:E15) -> 0 | F16: 0 | G16: =SUM(G7:G15) -> 31357 | H16: =SUM(H7:H15) -> 31357 | I16: =E16/D16 -> 0 | J16: 0 | K16: 0.5669830938 | L16: 0.5669830938
A18: CJ | B18: CIRCUIT JUVENILE DELINQUENCY | D18: 6037 | E18: 4058 | G18: 859 | H18: =SUM(E18:G18) -> 4917 | I18: =E18/D18 -> 0.6721881729 | J18: =F18/D18 -> 0 | K18: =G18/D18 -> 0.1422892165 | L18: =H18/D18 -> 0.8144773894
A19: CF | B19: CIRCUIT CRIMINAL FELONY | D19: 24634 | E19: 8561 | F19: 336 | G19: 5526 | H19: =SUM(E19:G19) -> 14423 | I19: 0.3475278071 | J19: =F19/D19 -> 0.01363968499 | K19: =G19/D19 -> 0.2243241049 | L19: =H19/D19 -> 0.585491597
A20: MM | B20: COUNTY CRIMINAL MISDEMEANOR | D20: 14075 | E20: 8229 | F20: 169 | G20: 2085 | H20: 10483 | I20: 0.5846536412 | J20: 0.0120071048 | K20: 0.1481349911 | L20: 0.7447957371
A21: CO | B21: COUNTY ORDINANCE | D21: 63 | E21: 35 | F21: 1 | G21: 14 | H21: 50 | I21: 0.5555555556 | J21: 0.01587301587 | K21: 0.2222222222 | L21: 0.7936507937
A22: MO | B22: COUNTY COURT MUNICIPAL ORDINANCE | D22: 258 | E22: 179 | F22: 10 | G22: 22 | H22: 211 | I22: 0.6937984496 | J22: 0.03875968992 | K22: 0.08527131783 | L22: 0.8178294574
A23: IN | B23: COUNTY COURT INFRACTIONS | D23: 217 | E23: 18 | F23: 0 | G23: 2 | H23: 20 | I23: 0.08294930876 | J23: 0 | K23: 0.009216589862 | L23: 0.09216589862
A24: CT | B24: COUNTY CRIMINAL TRAFFIC | D24: 11483 | E24: 6664 | F24: 256 | G24: 1224 | H24: 8144 | I24: 0.5803361491 | J24: 0.02229382566 | K24: 0.1065923539 | L24: 0.7092223287
A25: TOTAL OF CRIMINAL DOCUMENTS | D25: =SUM(D18:D24) -> 56767 | E25: =SUM(E18:E24) -> 27744 | F25: =SUM(F18:F24) -> 772 | G25: =SUM(G18:G24) -> 9732 | H25: =SUM(E25:G25) -> 38248 | I25: 0.4887346522 | J25: 0.01359945038 | K25: 0.171437631 | L25: 0.6737717336
A27: TR | B27: COUNTY CIVIL TRAFFIC | D27: 8214 | E27: 704 | F27: 1 | G27: 253 | H27: 0 | I27: =E27/D27 -> 0.08570732895 | J27: =F27/D27 -> 0.000121743365 | K27: =G27/D27 -> 0.03080107134 | L27: =H27/D27 -> 0
A29: TOTAL ALL COURT DOCUMENTS | D29: =D16+D25+D27 -> 120286 | E29: =E16+E25+E27 -> 28448 | F29: =F16+F25+F27 -> 773 | G29: =G16+G25+G27 -> 41342 | H29: =SUM(E29:G29) -> 70563 | I29: =E29/D29 -> 0.2365030012 | J29: =F29/D29 -> 0.006426350531 | K29: =G29/D29 -> 0.3436975209 | L29: =H29/D29 -> 0.5866268726

Sheet MAR15
A1: CLERK OF THE COURTS
A2: BREVARD COUNTY, FLORIDA
A3: Document Source Statistics March 2015
A4: Number of Documents Filed by Case Category
A6: Case | B6: Category | D6: Total # of Documents Filed | E6: Documents Filed InCourt | F6: Documents Filed Informix | G6: Documents e-Filed | H6: Total Docs Auto-Docketed | I6: % of TOTAL InCourt | J6: % of TOTAL Informix | K6: % of TOTAL e-Filed | L6: Total % of Documents Auto Docketed
A7: AP | B7: APPEALS | D7: 78 | E7: 0 | F7: 0 | G7: 61 | H7: =E7+F7+G7 -> 61 | I7: =E7/D7 -> 0 | J7: =F7/D7 -> 0 | K7: =G7/D7 -> 0.7820512821 | L7: =SUM(I7:K7) -> 0.7820512821
A8: CA | B8: CIRCUIT CIVIL | D8: 24845 | E8: 0 | F8: 0 | G8: 16772 | H8: =E8+F8+G8 -> 16772 | I8: =E8/D8 -> 0 | J8: =F8/D8 -> 0 | K8: =G8/D8 -> 0.6750654055 | L8: =SUM(I8:K8) -> 0.6750654055
A9: SC | B9: COUNTY CIVIL SMALL CLAIMS | D9: 3984 | E9: 0 | F9: 0 | G9: 2827 | H9: 2827 | I9: 0 | J9: 0 | K9: 0.7095883534 | L9: 0.7095883534
A10: DR | B10: CIRCUIT CIVIL FAMILY | D10: 15209 | E10: 0 | F10: 0 | G10: 5457 | H10: 5457 | I10: 0 | J10: 0 | K10: 0.3588007101 | L10: 0.3588007101
A11: CP | B11: CIRCUIT CIVIL PROBATE | D11: 4388 | E11: 0 | F11: 0 | G11: 3567 | H11: 3567 | I11: 0 | J11: 0 | K11: 0.8128988149 | L11: 0.8128988149
A12: GA | B12: CIRCUIT CIVIL GUARDIANSHIP | D12: 1527 | E12: 0 | F12: 0 | G12: 1233 | H12: 1233 | I12: 0 | J12: 0 | K12: 0.8074656189 | L12: 0.8074656189
A13: MH | B13: CIRCUIT CIVIL MENTAL HEALTH | D13: 865 | E13: 0 | F13: 0 | G13: 260 | H13: 260 | I13: 0 | J13: 0 | K13: 0.3005780347 | L13: 0.3005780347
A14: CC | B14: COUNTY CIVIL | D14: 4644 | E14: 0 | F14: 0 | G14: 2496 | H14: 2496 | I14: 0 | J14: 0 | K14: 0.5374677003 | L14: 0.5374677003
A15: DP | B15: CIRCUIT JUVENILE DEPENDENCY | D15: 2772 | E15: 0 | F15: 0 | G15: 1015 | H15: 1015 | I15: 0 | J15: 0 | K15: 0.3661616162 | L15: 0.3661616162
A16: TOTAL OF CIVIL DOCUMENTS | D16: =SUM(D7:D15) -> 58312 | E16: =SUM(E7:E15) -> 0 | F16: 0 | G16: =SUM(G7:G15) -> 33688 | H16: =SUM(H7:H15) -> 33688 | I16: =E16/D16 -> 0 | J16: 0 | K16: 0.5777198518 | L16: 0.5777198518
A18: CJ | B18: CIRCUIT JUVENILE DELINQUENCY | D18: 5913 | E18: 4003 | F18: 0 | G18: 767 | H18: =SUM(E18:G18) -> 4770 | I18: =E18/D18 -> 0.676982919 | J18: =F18/D18 -> 0 | K18: =G18/D18 -> 0.1297141891 | L18: =H18/D18 -> 0.8066971081
A19: CF | B19: CIRCUIT CRIMINAL FELONY | D19: 27321 | E19: 9707 | F19: 337 | G19: 5577 | H19: =SUM(E19:G19) -> 15621 | I19: 0.3552944621 | J19: =F19/D19 -> 0.01233483401 | K19: =G19/D19 -> 0.2041286922 | L19: =H19/D19 -> 0.5717579884
A20: MM | B20: COUNTY CRIMINAL MISDEMEANOR | D20: 16476 | E20: 9650 | F20: 174 | G20: 2423 | H20: 12247 | I20: 0.5857004127 | J20: 0.01056081573 | K20: 0.1470623938 | L20: 0.7433236222
A21: CO | B21: COUNTY ORDINANCE | D21: 107 | E21: 69 | F21: 1 | G21: 13 | H21: 83 | I21: 0.6448598131 | J21: 0.009345794393 | K21: 0.1214953271 | L21: 0.7757009346
A22: MO | B22: COUNTY COURT MUNICIPAL ORDINANCE | D22: 143 | E22: 94 | F22: 6 | G22: 12 | H22: 112 | I22: 0.6573426573 | J22: 0.04195804196 | K22: 0.08391608392 | L22: 0.7832167832
A23: IN | B23: COUNTY COURT INFRACTIONS | D23: 375 | E23: 24 | F23: 0 | G23: 5 | H23: 29 | I23: 0.064 | J23: 0 | K23: 0.01333333333 | L23: 0.07733333333
A24: CT | B24: COUNTY CRIMINAL TRAFFIC | D24: 12888 | E24: 7638 | F24: 285 | G24: 1269 | H24: 9192 | I24: 0.5926443203 | J24: 0.02211359404 | K24: 0.09846368715 | L24: 0.7132216015
A25: TOTAL OF CRIMINAL DOCUMENTS | D25: =SUM(D18:D24) -> 63223 | E25: =SUM(E18:E24) -> 31185 | F25: =SUM(F18:F24) -> 803 | G25: =SUM(G18:G24) -> 10066 | H25: =SUM(E25:G25) -> 42054 | I25: 0.4932540373 | J25: 0.01270107398 | K25: 0.15921421 | L25: 0.6651693213
A27: TR | B27: COUNTY CIVIL TRAFFIC | D27: 8834 | E27: 908 | F27: 0 | G27: 262 | H27: 0 | I27: =E27/D27 -> 0.1027846955 | J27: =F27/D27 -> 0 | K27: =G27/D27 -> 0.02965813901 | L27: =H27/D27 -> 0
A29: TOTAL ALL COURT DOCUMENTS | D29: =D16+D25+D27 -> 130369 | E29: =E16+E25+E27 -> 32093 | F29: =F16+F25+F27 -> 803 | G29: =G16+G25+G27 -> 44016 | H29: =SUM(E29:G29) -> 76912 | I29: =E29/D29 -> 0.2461704853 | J29: =F29/D29 -> 0.006159439744 | K29: =G29/D29 -> 0.3376262762 | L29: =H29/D29 -> 0.5899562012

Sheet APR15
A1: CLERK OF THE COURTS
A2: BREVARD COUNTY, FLORIDA
A3: Document Source Statistics April 2015
A4: Number of Documents Filed by Case Category
A6: Case | B6: Category | D6: Total # of Documents Filed | E6: Documents Filed InCourt | F6: Documents Filed Informix | G6: Documents e-Filed | H6: Total Docs Auto-Docketed | I6: % of TOTAL InCourt | J6: % of TOTAL Informix | K6: % of TOTAL e-Filed | L6: Total % of Documents Auto Docketed
A7: AP | B7: APPEALS | D7: 77 | E7: 0 | F7: 0 | G7: 66 | H7: =E7+F7+G7 -> 66 | I7: =E7/D7 -> 0 | J7: =F7/D7 -> 0 | K7: =G7/D7 -> 0.8571428571 | L7: =SUM(I7:K7) -> 0.8571428571
A8: CA | B8: CIRCUIT CIVIL | D8: 25546 | E8: 0 | F8: 0 | G8: 16737 | H8: =E8+F8+G8 -> 16737 | I8: =E8/D8 -> 0 | J8: =F8/D8 -> 0 | K8: =G8/D8 -> 0.655171064 | L8: =SUM(I8:K8) -> 0.655171064
A9: SC | B9: COUNTY CIVIL SMALL CLAIMS | D9: 4115 | E9: 0 | F9: 0 | G9: 2770 | H9: 2770 | I9: 0 | J9: 0 | K9: 0.6731470231 | L9: 0.6731470231
A10: DR | B10: CIRCUIT CIVIL FAMILY | D10: 16016 | E10: 0 | F10: 1 | G10: 5653 | H10: 5654 | I10: 0 | J10: 6.243756244e-05 | K10: 0.3529595405 | L10: 0.353021978
A11: CP | B11: CIRCUIT CIVIL PROBATE | D11: 4526 | E11: 0 | F11: 0 | G11: 3617 | H11: 3617 | I11: 0 | J11: 0 | K11: 0.7991604065 | L11: 0.7991604065
A12: GA | B12: CIRCUIT CIVIL GUARDIANSHIP | D12: 1774 | E12: 0 | F12: 0 | G12: 1355 | H12: 1355 | I12: 0 | J12: 0 | K12: 0.7638105975 | L12: 0.7638105975
A13: MH | B13: CIRCUIT CIVIL MENTAL HEALTH | D13: 886 | E13: 0 | F13: 0 | G13: 226 | H13: 226 | I13: 0 | J13: 0 | K13: 0.2550790068 | L13: 0.2550790068
A14: CC | B14: COUNTY CIVIL | D14: 5136 | E14: 0 | F14: 0 | G14: 2625 | H14: 2625 | I14: 0 | J14: 0 | K14: 0.5110981308 | L14: 0.5110981308
A15: DP | B15: CIRCUIT JUVENILE DEPENDENCY | D15: 2744 | E15: 0 | F15: 0 | G15: 1067 | H15: 1067 | I15: 0 | J15: 0 | K15: 0.3888483965 | L15: 0.3888483965
A16: TOTAL OF CIVIL DOCUMENTS | D16: =SUM(D7:D15) -> 60820 | E16: =SUM(E7:E15) -> 0 | F16: =SUM(F7:F15) -> 1 | G16: =SUM(G7:G15) -> 34116 | H16: =SUM(H7:H15) -> 34117 | I16: =E16/D16 -> 0 | J16: 1.644195988e-05 | K16: 0.5609339033 | L16: 0.5609503453
A18: CJ | B18: CIRCUIT JUVENILE DELINQUENCY | D18: 6136 | E18: 4305 | F18: 0 | G18: 801 | H18: =SUM(E18:G18) -> 5106 | I18: =E18/D18 -> 0.7015971317 | J18: =F18/D18 -> 0 | K18: =G18/D18 -> 0.1305410691 | L18: =H18/D18 -> 0.8321382008
A19: CF | B19: CIRCUIT CRIMINAL FELONY | D19: 28142 | E19: 10210 | F19: 330 | G19: 5536 | H19: =SUM(E19:G19) -> 16076 | I19: 0.362802928 | J19: =F19/D19 -> 0.01172624547 | K19: =G19/D19 -> 0.1967166513 | L19: =H19/D19 -> 0.5712458247
A20: MM | B20: COUNTY CRIMINAL MISDEMEANOR | D20: 13884 | E20: 8073 | F20: 165 | G20: 2005 | H20: 10243 | I20: 0.5814606742 | J20: 0.01188418323 | K20: 0.1444108326 | L20: 0.73775569
A21: CO | B21: COUNTY ORDINANCE | D21: 118 | E21: 83 | F21: 5 | G21: 10 | H21: 98 | I21: 0.7033898305 | J21: 0.04237288136 | K21: 0.08474576271 | L21: 0.8305084746
A22: MO | B22: COUNTY COURT MUNICIPAL ORDINANCE | D22: 270 | E22: 163 | F22: 3 | G22: 26 | H22: 192 | I22: 0.6037037037 | J22: 0.01111111111 | K22: 0.0962962963 | L22: 0.7111111111
A23: IN | B23: COUNTY COURT INFRACTIONS | D23: 419 | E23: 14 | F23: 0 | G23: 18 | H23: 32 | I23: 0.03341288783 | J23: 0 | K23: 0.04295942721 | L23: 0.07637231504
A24: CT | B24: COUNTY CRIMINAL TRAFFIC | D24: 10172 | E24: 5802 | F24: 305 | G24: 1070 | H24: 7177 | I24: 0.570389304 | J24: 0.02998427055 | K24: 0.1051907196 | L24: 0.7055642941
A25: TOTAL OF CRIMINAL DOCUMENTS | D25: =SUM(D18:D24) -> 59141 | E25: =SUM(E18:E24) -> 28650 | F25: =SUM(F18:F24) -> 808 | G25: =SUM(G18:G24) -> 9466 | H25: =SUM(E25:G25) -> 38924 | I25: 0.4844355016 | J25: 0.01366226476 | K25: 0.1600581661 | L25: 0.6581559324
A27: TR | B27: COUNTY CIVIL TRAFFIC | D27: 8702 | E27: 997 | F27: 0 | G27: 284 | H27: 0 | I27: =E27/D27 -> 0.1145713629 | J27: =F27/D27 -> 0 | K27: =G27/D27 -> 0.03263617559 | L27: =H27/D27 -> 0
A29: TOTAL ALL COURT DOCUMENTS | D29: =D16+D25+D27 -> 128663 | E29: =E16+E25+E27 -> 29647 | F29: =F16+F25+F27 -> 809 | G29: =G16+G25+G27 -> 43866 | H29: =SUM(E29:G29) -> 74322 | I29: =E29/D29 -> 0.2304236649 | J29: =F29/D29 -> 0.006287743951 | K29: =G29/D29 -> 0.340937177 | L29: =H29/D29 -> 0.5776485858

Sheet MAY15
A1: CLERK OF THE COURTS
A2: BREVARD COUNTY, FLORIDA
A3: Document Source Statistics May 2015
A4: Number of Documents Filed by Case Category
A6: Case | B6: Category | D6: Total # of Documents Filed | E6: Documents Filed InCourt | F6: Documents Filed Informix | G6: Documents e-Filed | H6: Total Docs Auto-Docketed | I6: % of TOTAL InCourt | J6: % of TOTAL Informix | K6: % of TOTAL e-Filed | L6: Total % of Documents Auto Docketed
A7: AP | B7: APPEALS | D7: 78 | E7: 0 | F7: 0 | G7: 62 | H7: =E7+F7+G7 -> 62 | I7: =E7/D7 -> 0 | J7: =F7/D7 -> 0 | K7: =G7/D7 -> 0.7948717949 | L7: =SUM(I7:K7) -> 0.7948717949
A8: CA | B8: CIRCUIT CIVIL | D8: 22154 | E8: 0 | F8: 1 | G8: 15023 | H8: =E8+F8+G8 -> 15024 | I8: =E8/D8 -> 0 | J8: =F8/D8 -> 4.513857543e-05 | K8: =G8/D8 -> 0.6781168186 | L8: =SUM(I8:K8) -> 0.6781619572
A9: SC | B9: COUNTY CIVIL SMALL CLAIMS | D9: 3902 | E9: 0 | F9: 0 | G9: 2750 | H9: 2750 | I9: 0 | J9: 0 | K9: 0.7047667863 | L9: 0.7047667863
A10: DR | B10: CIRCUIT CIVIL FAMILY | D10: 15237 | E10: 0 | F10: 0 | G10: 5072 | H10: 5072 | I10: 0 | J10: 0 | K10: 0.3328739253 | L10: 0.3328739253
A11: CP | B11: CIRCUIT CIVIL PROBATE | D11: 3984 | E11: 0 | F11: 0 | G11: 3221 | H11: 3221 | I11: 0 | J11: 0 | K11: 0.8084839357 | L11: 0.8084839357
A12: GA | B12: CIRCUIT CIVIL GUARDIANSHIP | D12: 1571 | E12: 0 | F12: 0 | G12: 1329 | H12: 1329 | I12: 0 | J12: 0 | K12: 0.8459579885 | L12: 0.8459579885
A13: MH | B13: CIRCUIT CIVIL MENTAL HEALTH | D13: 761 | E13: 0 | F13: 0 | G13: 181 | H13: 181 | I13: 0 | J13: 0 | K13: 0.2378449409 | L13: 0.2378449409
A14: CC | B14: COUNTY CIVIL | D14: 4818 | E14: 0 | F14: 0 | G14: 2414 | H14: 2414 | I14: 0 | J14: 0 | K14: 0.501037775 | L14: 0.501037775
A15: DP | B15: CIRCUIT JUVENILE DEPENDENCY | D15: 2496 | E15: 0 | F15: 0 | G15: 1078 | H15: 1078 | I15: 0 | J15: 0 | K15: 0.4318910256 | L15: 0.4318910256
A16: TOTAL OF CIVIL DOCUMENTS | D16: =SUM(D7:D15) -> 55001 | E16: =SUM(E7:E15) -> 0 | F16: =SUM(F7:F15) -> 1 | G16: =SUM(G7:G15) -> 31130 | H16: =SUM(H7:H15) -> 31131 | I16: =E16/D16 -> 0 | J16: 1.818148761e-05 | K16: 0.5659897093 | L16: 0.5660078908
A18: CJ | B18: CIRCUIT JUVENILE DELINQUENCY | D18: 6863 | E18: 5083 | F18: 0 | G18: 981 | H18: =SUM(E18:G18) -> 6064 | I18: =E18/D18 -> 0.7406382049 | J18: =F18/D18 -> 0 | K18: =G18/D18 -> 0.1429404051 | L18: =H18/D18 -> 0.8835786099
A19: CF | B19: CIRCUIT CRIMINAL FELONY | D19: 25842 | E19: 10083 | F19: 306 | G19: 5133 | H19: =SUM(E19:G19) -> 15522 | I19: 0.3901787787 | J19: =F19/D19 -> 0.01184118876 | K19: =G19/D19 -> 0.198630137 | L19: =H19/D19 -> 0.6006501045
A20: MM | B20: COUNTY CRIMINAL MISDEMEANOR | D20: 12238 | E20: 7363 | F20: 158 | G20: 1834 | H20: 9355 | I20: 0.6016505965 | J20: 0.01291060631 | K20: 0.1498610884 | L20: 0.7644222912
A21: CO | B21: COUNTY ORDINANCE | D21: 60 | E21: 41 | F21: 1 | G21: 9 | H21: 51 | I21: 0.6833333333 | J21: 0.01666666667 | K21: 0.15 | L21: 0.85
A22: MO | B22: COUNTY COURT MUNICIPAL ORDINANCE | D22: 159 | E22: 101 | F22: 7 | G22: 20 | H22: 128 | I22: 0.6352201258 | J22: 0.04402515723 | K22: 0.1257861635 | L22: 0.8050314465
A23: IN | B23: COUNTY COURT INFRACTIONS | D23: 542 | E23: 14 | F23: 0 | G23: 20 | H23: 34 | I23: 0.0258302583 | J23: 0 | K23: 0.036900369 | L23: 0.06273062731
A24: CT | B24: COUNTY CRIMINAL TRAFFIC | D24: 9631 | E24: 5446 | F24: 313 | G24: 1126 | H24: 6885 | I24: 0.5654656837 | J24: 0.03249922126 | K24: 0.1169141315 | L24: 0.7148790364
A25: TOTAL OF CRIMINAL DOCUMENTS | D25: =SUM(D18:D24) -> 55335 | E25: =SUM(E18:E24) -> 28131 | F25: =SUM(F18:F24) -> 785 | G25: =SUM(G18:G24) -> 9123 | H25: =SUM(E25:G25) -> 38039 | I25: 0.5083762537 | J25: 0.01418631969 | K25: 0.1648685281 | L25: 0.6874311015
A27: TR | B27: COUNTY CIVIL TRAFFIC | D27: 7141 | E27: 630 | F27: 1 | G27: 186 | H27: 0 | I27: =E27/D27 -> 0.08822293796 | J27: =F27/D27 -> 0.0001400364095 | K27: =G27/D27 -> 0.02604677216 | L27: =H27/D27 -> 0
A29: TOTAL ALL COURT DOCUMENTS | D29: =D16+D25+D27 -> 117477 | E29: =E16+E25+E27 -> 28761 | F29: =F16+F25+F27 -> 787 | G29: =G16+G25+G27 -> 40439 | H29: =SUM(E29:G29) -> 69987 | I29: =E29/D29 -> 0.2448223908 | J29: =F29/D29 -> 0.00669918367 | K29: =G29/D29 -> 0.3442290831 | L29: =H29/D29 -> 0.5957506576

Sheet JUN15
A1: CLERK OF THE COURTS
A2: BREVARD COUNTY, FLORIDA
A3: Document Source Statistics June 2015
A4: Number of Documents Filed by Case Category
A6: Case | B6: Category | D6: Total # of Documents Filed | E6: Documents Filed InCourt | F6: Documents Filed Informix | G6: Documents e-Filed | H6: Total Docs Auto-Docketed | I6: % of TOTAL InCourt | J6: % of TOTAL Informix | K6: % of TOTAL e-Filed | L6: Total % of Documents Auto Docketed
A7: AP | B7: APPEALS | D7: 78 | E7: 0 | F7: 0 | G7: 47 | H7: =E7+F7+G7 -> 47 | I7: =E7/D7 -> 0 | J7: =F7/D7 -> 0 | K7: =G7/D7 -> 0.6025641026 | L7: =SUM(I7:K7) -> 0.6025641026
A8: CA | B8: CIRCUIT CIVIL | D8: 22556 | E8: 0 | F8: 0 | G8: 15418 | H8: =E8+F8+G8 -> 15418 | I8: =E8/D8 -> 0 | J8: =F8/D8 -> 0 | K8: =G8/D8 -> 0.6835431814 | L8: =SUM(I8:K8) -> 0.6835431814
A9: SC | B9: COUNTY CIVIL SMALL CLAIMS | D9: 4469 | E9: 0 | F9: 0 | G9: 3116 | H9: 3116 | I9: 0 | J9: 0 | K9: 0.6972477064 | L9: 0.6972477064
A10: DR | B10: CIRCUIT FAMILY | D10: 15847 | E10: 0 | F10: 1 | G10: 5555 | H10: 5556 | I10: 0 | J10: 6.310342652e-05 | K10: 0.3505395343 | L10: 0.3506026377
A11: CP | B11: CIRCUIT PROBATE | D11: 4347 | E11: 0 | F11: 0 | G11: 3450 | H11: 3450 | I11: 0 | J11: 0 | K11: 0.7936507937 | L11: 0.7936507937
A12: GA | B12: CIRCUIT GUARDIANSHIP | D12: 1603 | E12: 0 | F12: 0 | G12: 1337 | H12: 1337 | I12: 0 | J12: 0 | K12: 0.8340611354 | L12: 0.8340611354
A13: MH | B13: CIRCUIT MENTAL HEALTH | D13: 830 | E13: 0 | F13: 0 | G13: 229 | H13: 229 | I13: 0 | J13: 0 | K13: 0.2759036145 | L13: 0.2759036145
A14: CC | B14: COUNTY CIVIL | D14: 5450 | E14: 0 | F14: 0 | G14: 2718 | H14: 2718 | I14: 0 | J14: 0 | K14: 0.4987155963 | L14: 0.4987155963
A15: DP | B15: CIRCUIT JUVENILE DEPENDENCY | D15: 3046 | E15: 0 | F15: 0 | G15: 1243 | H15: 1243 | I15: 0 | J15: 0 | K15: 0.4080761655 | L15: 0.4080761655
A16: TOTAL OF CIVIL DOCUMENTS | D16: =SUM(D7:D15) -> 58226 | E16: =SUM(E7:E15) -> 0 | F16: =SUM(F7:F15) -> 1 | G16: =SUM(G7:G15) -> 33113 | H16: =SUM(H7:H15) -> 33114 | I16: =E16/D16 -> 0 | J16: 1.717445815e-05 | K16: 0.5686978326 | L16: 0.568715007
A18: CJ | B18: CIRCUIT JUVENILE DELINQUENCY | D18: 6899 | E18: 4742 | F18: 0 | G18: 1033 | H18: =SUM(E18:G18) -> 5775 | I18: =E18/D18 -> 0.6873459922 | J18: =F18/D18 -> 0 | K18: =G18/D18 -> 0.1497318452 | L18: =H18/D18 -> 0.8370778374
A19: CF | B19: CIRCUIT CRIMINAL FELONY | D19: 26924 | E19: 9229 | F19: 400 | G19: 5860 | H19: =SUM(E19:G19) -> 15489 | I19: 0.3427796761 | J19: =F19/D19 -> 0.01485663349 | K19: =G19/D19 -> 0.2176496806 | L19: =H19/D19 -> 0.5752859902
A20: MM | B20: COUNTY CRIMINAL MISDEMEANOR | D20: 14277 | E20: 8700 | F20: 200 | G20: 2226 | H20: 11126 | I20: 0.6093717167 | J20: 0.01400854521 | K20: 0.1559151082 | L20: 0.7792953702
A21: CO | B21: COUNTY ORDINANCE | D21: 63 | E21: 46 | F21: 1 | G21: 9 | H21: 56 | I21: 0.7301587302 | J21: 0.01587301587 | K21: 0.1428571429 | L21: 0.8888888889
A22: MO | B22: COUNTY COURT MUNICIPAL ORDINANCE | D22: 161 | E22: 98 | F22: 5 | G22: 23 | H22: 126 | I22: 0.6086956522 | J22: 0.03105590062 | K22: 0.1428571429 | L22: 0.7826086957
A23: IN | B23: COUNTY COURT INFRACTIONS | D23: 422 | E23: 25 | F23: 0 | G23: 26 | H23: 51 | I23: 0.05924170616 | J23: 0 | K23: 0.06161137441 | L23: 0.1208530806
A24: CT | B24: COUNTY CRIMINAL TRAFFIC | D24: 11168 | E24: 6607 | F24: 255 | G24: 1160 | H24: 8022 | I24: 0.5916010029 | J24: 0.02283309456 | K24: 0.1038681948 | L24: 0.7183022923
A25: TOTAL OF CRIMINAL DOCUMENTS | D25: =SUM(D18:D24) -> 59914 | E25: =SUM(E18:E24) -> 29447 | F25: =SUM(F18:F24) -> 861 | G25: =SUM(G18:G24) -> 10337 | H25: =SUM(E25:G25) -> 40645 | I25: 0.4914877992 | J25: 0.01437059786 | K25: 0.1725306272 | L25: 0.6783890243
A27: TR | B27: COUNTY CIVIL TRAFFIC | D27: 8701 | E27: 921 | F27: 0 | G27: 249 | H27: 0 | I27: =E27/D27 -> 0.1058499023 | J27: =F27/D27 -> 0 | K27: =G27/D27 -> 0.0286174003 | L27: =H27/D27 -> 0
A29: TOTAL ALL COURT DOCUMENTS | D29: =D16+D25+D27 -> 126841 | E29: =E16+E25+E27 -> 30368 | F29: =F16+F25+F27 -> 862 | G29: =G16+G25+G27 -> 43699 | H29: =SUM(E29:G29) -> 74929 | I29: =E29/D29 -> 0.2394178538 | J29: =F29/D29 -> 0.00679590984 | K29: =G29/D29 -> 0.3445179398 | L29: =H29/D29 -> 0.5907317035

Sheet JUL15
A1: CLERK OF THE COURTS
A2: BREVARD COUNTY, FLORIDA
A3: Document Source Statistics July 2015
A4: Number of Documents Filed by Case Category
A6: Case | B6: Category | D6: Total # of Documents Filed | E6: Documents Filed InCourt | F6: Documents Filed Informix | G6: Documents e-Filed | H6: Total Docs Auto-Docketed | I6: % of TOTAL InCourt | J6: % of TOTAL Informix | K6: % of TOTAL e-Filed | L6: Total % of Documents Auto Docketed
A7: AP | B7: APPEALS | D7: 62 | E7: 0 | F7: 0 | G7: 34 | H7: =E7+F7+G7 -> 34 | I7: =E7/D7 -> 0 | J7: =F7/D7 -> 0 | K7: =G7/D7 -> 0.5483870968 | L7: =SUM(I7:K7) -> 0.5483870968
A8: CA | B8: CIRCUIT CIVIL | D8: 22207 | E8: 0 | F8: 0 | G8: 15730 | H8: =E8+F8+G8 -> 15730 | I8: =E8/D8 -> 0 | J8: =F8/D8 -> 0 | K8: =G8/D8 -> 0.7083352096 | L8: =SUM(I8:K8) -> 0.7083352096
A9: SC | B9: COUNTY CIVIL SMALL CLAIMS | D9: 4223 | E9: 0 | F9: 0 | G9: 2903 | H9: 2903 | I9: 0 | J9: 0 | K9: 0.6874260005 | L9: 0.6874260005
A10: DR | B10: CIRCUIT CIVIL FAMILY | D10: 14714 | E10: 0 | F10: 0 | G10: 6057 | H10: 6057 | I10: 0 | J10: 0 | K10: 0.4116487699 | L10: 0.4116487699
A11: CP | B11: CIRCUIT CIVIL PROBATE | D11: 4144 | E11: 0 | F11: 0 | G11: 3334 | H11: 3334 | I11: 0 | J11: 0 | K11: 0.8045366795 | L11: 0.8045366795
A12: GA | B12: CIRCUIT CIVIL GUARDIANSHIP | D12: 1643 | E12: 0 | F12: 0 | G12: 1331 | H12: 1331 | I12: 0 | J12: 0 | K12: 0.8101034693 | L12: 0.8101034693
A13: MH | B13: CIRCUIT CIVIL MENTAL HEALTH | D13: 789 | E13: 0 | F13: 0 | G13: 238 | H13: 238 | I13: 0 | J13: 0 | K13: 0.3016476553 | L13: 0.3016476553
A14: CC | B14: COUNTY CIVIL | D14: 5577 | E14: 0 | F14: 0 | G14: 2753 | H14: 2753 | I14: 0 | J14: 0 | K14: 0.4936345706 | L14: 0.4936345706
A15: DP | B15: CIRCUIT JUVENILE DEPENDENCY | D15: 2191 | E15: 0 | F15: 0 | G15: 1102 | H15: 1102 | I15: 0 | J15: 0 | K15: 0.5029666819 | L15: 0.5029666819
A16: TOTAL OF CIVIL DOCUMENTS | D16: =SUM(D7:D15) -> 55550 | E16: =SUM(E7:E15) -> 0 | F16: =SUM(F7:F15) -> 0 | G16: =SUM(G7:G15) -> 33482 | H16: =SUM(H7:H15) -> 33482 | I16: =E16/D16 -> 0 | J16: 0 | K16: 0.6027362736 | L16: 0.6027362736
A18: CJ | B18: CIRCUIT JUVENILE DELINQUENCY | D18: 6515 | E18: 4143 | F18: 2 | G18: 1206 | H18: =SUM(E18:G18) -> 5351 | I18: =E18/D18 -> 0.6359171144 | J18: =F18/D18 -> 0.0003069838833 | K18: =G18/D18 -> 0.1851112817 | L18: =H18/D18 -> 0.8213353799
A19: CF | B19: CIRCUIT CRIMINAL FELONY | D19: 27286 | E19: 10766 | F19: 377 | G19: 6106 | H19: =SUM(E19:G19) -> 17249 | I19: 0.3945613135 | J19: =F19/D19 -> 0.01381660925 | K19: =G19/D19 -> 0.2237777615 | L19: =H19/D19 -> 0.6321556842
A20: MM | B20: COUNTY CRIMINAL MISDEMEANOR | D20: 13172 | E20: 7666 | F20: 199 | G20: 2464 | H20: 10329 | I20: 0.5819921045 | J20: 0.01510780443 | K20: 0.187063468 | L20: 0.7841633769
A21: CO | B21: COUNTY ORDINANCE | D21: 58 | E21: 35 | F21: 0 | G21: 8 | H21: 43 | I21: 0.6034482759 | J21: 0 | K21: 0.1379310345 | L21: 0.7413793103
A22: MO | B22: COUNTY COURT MUNICIPAL ORDINANCE | D22: 191 | E22: 115 | F22: 14 | G22: 33 | H22: 162 | I22: 0.6020942408 | J22: 0.07329842932 | K22: 0.1727748691 | L22: 0.8481675393
A23: IN | B23: COUNTY COURT INFRACTIONS | D23: 442 | E23: 17 | F23: 1 | G23: 18 | H23: 36 | I23: 0.03846153846 | J23: 0.002262443439 | K23: 0.0407239819 | L23: 0.0814479638
A24: CT | B24: COUNTY CRIMINAL TRAFFIC | D24: 10470 | E24: 5405 | F24: 311 | G24: 1511 | H24: 7227 | I24: 0.5162368672 | J24: 0.02970391595 | K24: 0.1443170965 | L24: 0.6902578797
A25: TOTAL OF CRIMINAL DOCUMENTS | D25: =SUM(D18:D24) -> 58134 | E25: =SUM(E18:E24) -> 28147 | F25: =SUM(F18:F24) -> 904 | G25: =SUM(G18:G24) -> 11346 | H25: =SUM(E25:G25) -> 40397 | I25: 0.4841744934 | J25: 0.01555028039 | K25: 0.1951697802 | L25: 0.694894554
A27: TR | B27: COUNTY CIVIL TRAFFIC | D27: 8120 | E27: 897 | F27: 0 | G27: 240 | H27: 0 | I27: =E27/D27 -> 0.1104679803 | J27: =F27/D27 -> 0 | K27: =G27/D27 -> 0.02955665025 | L27: =H27/D27 -> 0
A29: TOTAL ALL COURT DOCUMENTS | D29: =D16+D25+D27 -> 121804 | E29: =E16+E25+E27 -> 29044 | F29: =F16+F25+F27 -> 904 | G29: =G16+G25+G27 -> 45068 | H29: =SUM(E29:G29) -> 75016 | I29: =E29/D29 -> 0.2384486552 | J29: =F29/D29 -> 0.007421759548 | K29: =G29/D29 -> 0.3700042692 | L29: =H29/D29 -> 0.6158746839

Sheet AUG15
A1: CLERK OF THE COURTS
A2: BREVARD COUNTY, FLORIDA
A3: Document Source Statistics August 2015
A4: Number of Documents Filed by Case Category
A6: Case | B6: Category | D6: Total # of Documents Filed | E6: Documents Filed InCourt | F6: Documents Filed Informix | G6: Documents e-Filed | H6: Total Docs Auto-Docketed | I6: % of TOTAL InCourt | J6: % of TOTAL Informix | K6: % of TOTAL e-Filed | L6: Total % of Documents Auto Docketed
A7: AP | B7: APPEALS | D7: 51 | E7: 0 | F7: 0 | G7: 35 | H7: =E7+F7+G7 -> 35 | I7: =E7/D7 -> 0 | J7: =F7/D7 -> 0 | K7: =G7/D7 -> 0.6862745098 | L7: =SUM(I7:K7) -> 0.6862745098
A8: CA | B8: CIRCUIT CIVIL | D8: 20775 | E8: 0 | F8: 0 | G8: 15162 | H8: =E8+F8+G8 -> 15162 | I8: =E8/D8 -> 0 | J8: =F8/D8 -> 0 | K8: =G8/D8 -> 0.7298194946 | L8: =SUM(I8:K8) -> 0.7298194946
A9: SC | B9: COUNTY CIVIL SMALL CLAIMS | D9: 4066 | E9: 0 | F9: 0 | G9: 3156 | H9: 3156 | I9: 0 | J9: 0 | K9: 0.7761928185 | L9: 0.7761928185
A10: DR | B10: CIRCUIT CIVIL FAMILY | D10: 14575 | E10: 0 | F10: 0 | G10: 7259 | H10: 7259 | I10: 0 | J10: 0 | K10: 0.4980445969 | L10: 0.4980445969
A11: CP | B11: CIRCUIT CIVIL PROBATE | D11: 4308 | E11: 0 | F11: 0 | G11: 3452 | H11: 3452 | I11: 0 | J11: 0 | K11: 0.8012999071 | L11: 0.8012999071
A12: GA | B12: CIRCUIT CIVIL GUARDIANSHIP | D12: 1571 | E12: 0 | F12: 0 | G12: 1448 | H12: 1448 | I12: 0 | J12: 0 | K12: 0.9217059198 | L12: 0.9217059198
A13: MH | B13: CIRCUIT CIVIL MENTAL HEALTH | D13: 640 | E13: 0 | F13: 0 | G13: 3040 | H13: 3040 | I13: 0 | J13: 0 | K13: 4.75 | L13: 4.75
A14: CC | B14: COUNTY CIVIL | D14: 5296 | E14: 0 | F14: 0 | G14: 305 | H14: 305 | I14: 0 | J14: 0 | K14: 0.05759063444 | L14: 0.05759063444
A15: DP | B15: CIRCUIT JUVENILE DEPENDENCY | D15: 2468 | E15: 0 | F15: 0 | G15: 1228 | H15: 1228 | I15: 0 | J15: 0 | K15: 0.4975688817 | L15: 0.4975688817
A16: TOTAL OF CIVIL DOCUMENTS | D16: =SUM(D7:D15) -> 53750 | E16: =SUM(E7:E15) -> 0 | F16: =SUM(F7:F15) -> 0 | G16: =SUM(G7:G15) -> 35085 | H16: =SUM(H7:H15) -> 35085 | I16: =E16/D16 -> 0 | J16: 0 | K16: 0.652744186 | L16: 0.652744186
A18: CJ | B18: CIRCUIT JUVENILE DELINQUENCY | D18: 5348 | E18: 3735 | F18: 0 | G18: 957 | H18: =SUM(E18:G18) -> 4692 | I18: =E18/D18 -> 0.6983919222 | J18: =F18/D18 -> 0 | K18: =G18/D18 -> 0.1789454001 | L18: =H18/D18 -> 0.8773373224
A19: CF | B19: CIRCUIT CRIMINAL FELONY | D19: 26312 | E19: 10581 | F19: 315 | G19: 5842 | H19: =SUM(E19:G19) -> 16738 | I19: 0.4021359076 | J19: =F19/D19 -> 0.01197172393 | K19: =G19/D19 -> 0.222027972 | L19: =H19/D19 -> 0.6361356035
A20: MM | B20: COUNTY CRIMINAL MISDEMEANOR | D20: 14214 | E20: 8835 | F20: 168 | G20: 2268 | H20: 11271 | I20: 0.6215702828 | J20: 0.01181933305 | K20: 0.1595609962 | L20: 0.7929506121
A21: CO | B21: COUNTY ORDINANCE | D21: 50 | E21: 35 | F21: 2 | G21: 6 | H21: 43 | I21: 0.7 | J21: 0.04 | K21: 0.12 | L21: 0.86
A22: MO | B22: COUNTY COURT MUNICIPAL ORDINANCE | D22: 286 | E22: 180 | F22: 22 | G22: 25 | H22: 227 | I22: 0.6293706294 | J22: 0.07692307692 | K22: 0.08741258741 | L22: 0.7937062937
A23: IN | B23: COUNTY COURT INFRACTIONS | D23: 301 | E23: 25 | F23: 1 | G23: 17 | H23: 43 | I23: 0.08305647841 | J23: 0.003322259136 | K23: 0.05647840532 | L23: 0.1428571429
A24: CT | B24: COUNTY CRIMINAL TRAFFIC | D24: 10837 | E24: 6181 | F24: 263 | G24: 1301 | H24: 7745 | I24: 0.570360801 | J24: 0.02426870905 | K24: 0.1200516748 | L24: 0.7146811848
A25: TOTAL OF CRIMINAL DOCUMENTS | D25: =SUM(D18:D24) -> 57348 | E25: =SUM(E18:E24) -> 29572 | F25: =SUM(F18:F24) -> 771 | G25: =SUM(G18:G24) -> 10416 | H25: =SUM(E25:G25) -> 40759 | I25: 0.515658785 | J25: 0.0134442352 | K25: 0.1816279556 | L25: 0.7107309758
A27: TR | B27: COUNTY CIVIL TRAFFIC | D27: 6941 | E27: 834 | F27: 0 | G27: 270 | H27: 0 | I27: =E27/D27 -> 0.1201555972 | J27: =F27/D27 -> 0 | K27: =G27/D27 -> 0.03889929405 | L27: =H27/D27 -> 0
A29: TOTAL ALL COURT DOCUMENTS | D29: =D16+D25+D27 -> 118039 | E29: =E16+E25+E27 -> 30406 | F29: =F16+F25+F27 -> 771 | G29: =G16+G25+G27 -> 45771 | H29: =SUM(E29:G29) -> 76948 | I29: =E29/D29 -> 0.2575928295 | J29: =F29/D29 -> 0.00653173951 | K29: =G29/D29 -> 0.387761672 | L29: =H29/D29 -> 0.651886241

Sheet SEP15
A1: CLERK OF THE COURTS
A2: BREVARD COUNTY, FLORIDA
A3: Document Source Statistics September 2015
A4: Number of Documents Filed by Case Category
A6: Case | B6: Category | D6: Total # of Documents Filed | E6: Documents Filed InCourt | F6: Documents Filed Informix | G6: Documents e-Filed | H6: Total Docs Auto-Docketed | I6: % of TOTAL InCourt | J6: % of TOTAL Informix | K6: % of TOTAL e-Filed | L6: Total % of Documents Auto Docketed
A7: AP | B7: APPEALS | D7: 50 | E7: 0 | F7: 0 | G7: 33 | H7: =E7+F7+G7 -> 33 | I7: =E7/D7 -> 0 | J7: =F7/D7 -> 0 | K7: =G7/D7 -> 0.66 | L7: =SUM(I7:K7) -> 0.66
A8: CA | B8: CIRCUIT CIVIL | D8: 20424 | E8: 0 | F8: 0 | G8: 15621 | H8: =E8+F8+G8 -> 15621 | I8: =E8/D8 -> 0 | J8: =F8/D8 -> 0 | K8: =G8/D8 -> 0.7648354877 | L8: =SUM(I8:K8) -> 0.7648354877
A9: SC | B9: COUNTY CIVIL SMALL CLAIMS | D9: 3796 | E9: 0 | F9: 0 | G9: 2887 | H9: 2887 | I9: 0 | J9: 0 | K9: 0.7605374078 | L9: 0.7605374078
A10: DR | B10: CIRCUIT CIVIL FAMILY | D10: 15196 | E10: 0 | F10: 0 | G10: 8122 | H10: 8122 | I10: 0 | J10: 0 | K10: 0.5344827586 | L10: 0.5344827586
A11: CP | B11: CIRCUIT CIVIL PROBATE | D11: 4064 | E11: 0 | F11: 0 | G11: 3355 | H11: 3355 | I11: 0 | J11: 0 | K11: 0.8255413386 | L11: 0.8255413386
A12: GA | B12: CIRCUIT CIVIL GUARDIANSHIP | D12: 1436 | E12: 0 | F12: 0 | G12: 1370 | H12: 1370 | I12: 0 | J12: 0 | K12: 0.9540389972 | L12: 0.9540389972
A13: MH | B13: CIRCUIT CIVIL MENTAL HEALTH | D13: 719 | E13: 0 | F13: 0 | G13: 303 | H13: 303 | I13: 0 | J13: 0 | K13: 0.421418637 | L13: 0.421418637
A14: CC | B14: COUNTY CIVIL | D14: 4960 | E14: 0 | F14: 0 | G14: 3214 | H14: 3214 | I14: 0 | J14: 0 | K14: 0.647983871 | L14: 0.647983871
A15: DP | B15: CIRCUIT JUVENILE DEPENDENCY | D15: 2271 | E15: 0 | F15: 0 | G15: 1273 | H15: 1273 | I15: 0 | J15: 0 | K15: 0.560546015 | L15: 0.560546015
A16: TOTAL OF CIVIL DOCUMENTS | D16: =SUM(D7:D15) -> 52916 | E16: =SUM(E7:E15) -> 0 | F16: =SUM(F7:F15) -> 0 | G16: =SUM(G7:G15) -> 36178 | H16: =SUM(H7:H15) -> 36178 | I16: =E16/D16 -> 0 | J16: 0 | K16: 0.6836873535 | L16: 0.6836873535
A18: CJ | B18: CIRCUIT JUVENILE DELINQUENCY | D18: 4838 | E18: 2973 | F18: 0 | G18: 1105 | H18: =SUM(E18:G18) -> 4078 | I18: =E18/D18 -> 0.6145101282 | J18: =F18/D18 -> 0 | K18: =G18/D18 -> 0.2284001654 | L18: =H18/D18 -> 0.8429102935
A19: CF | B19: CIRCUIT CRIMINAL FELONY | D19: 27718 | E19: 10653 | F19: 289 | G19: 6229 | H19: =SUM(E19:G19) -> 17171 | I19: 0.3843350891 | J19: =F19/D19 -> 0.01042643769 | K19: =G19/D19 -> 0.2247276138 | L19: =H19/D19 -> 0.6194891406
A20: MM | B20: COUNTY CRIMINAL MISDEMEANOR | D20: 13710 | E20: 8297 | F20: 159 | G20: 2190 | H20: 10646 | I20: 0.6051787017 | J20: 0.01159737418 | K20: 0.1597374179 | L20: 0.7765134938
A21: CO | B21: COUNTY ORDINANCE | D21: 77 | E21: 44 | F21: 0 | G21: 5 | H21: 49 | I21: 0.5714285714 | J21: 0 | K21: 0.06493506494 | L21: 0.6363636364
A22: MO | B22: COUNTY COURT MUNICIPAL ORDINANCE | D22: 445 | E22: 294 | F22: 21 | G22: 55 | H22: 370 | I22: 0.6606741573 | J22: 0.04719101124 | K22: 0.1235955056 | L22: 0.8314606742
A23: IN | B23: COUNTY COURT INFRACTIONS | D23: 237 | E23: 21 | F23: 0 | G23: 2 | H23: 23 | I23: 0.08860759494 | J23: 0 | K23: 0.008438818565 | L23: 0.0970464135
A24: CT | B24: COUNTY CRIMINAL TRAFFIC | D24: 10709 | E24: 6034 | F24: 250 | G24: 1242 | H24: 7526 | I24: 0.5634513026 | J24: 0.02334485013 | K24: 0.1159772154 | L24: 0.7027733682
A25: TOTAL OF CRIMINAL DOCUMENTS | D25: =SUM(D18:D24) -> 57734 | E25: =SUM(E18:E24) -> 28316 | F25: =SUM(F18:F24) -> 719 | G25: =SUM(G18:G24) -> 10828 | H25: =SUM(E25:G25) -> 39863 | I25: 0.4904562303 | J25: 0.01245366682 | K25: 0.1875497973 | L25: 0.6904596945
A27: TR | B27: COUNTY CIVIL TRAFFIC | D27: 6832 | E27: 746 | F27: 0 | G27: 275 | H27: 0 | I27: =E27/D27 -> 0.1091920375 | J27: =F27/D27 -> 0 | K27: =G27/D27 -> 0.04025175644 | L27: =H27/D27 -> 0
A29: TOTAL ALL COURT DOCUMENTS | D29: =D16+D25+D27 -> 117482 | E29: =E16+E25+E27 -> 29062 | F29: =F16+F25+F27 -> 719 | G29: =G16+G25+G27 -> 47281 | H29: =SUM(E29:G29) -> 77062 | I29: =E29/D29 -> 0.2473740658 | J29: =F29/D29 -> 0.006120086481 | K29: =G29/D29 -> 0.4024531418 | L29: =H29/D29 -> 0.6559472941

Sheet OCT15
A1: CLERK OF THE COURTS
A2: BREVARD COUNTY, FLORIDA
A3: Document Source Statistics October 2015
A4: Number of Documents Filed by Case Category
A6: Case | B6: Category | D6: Total # of Documents Filed | E6: Documents Filed InCourt | F6: Documents Filed Informix | G6: Documents e-Filed | H6: Total Docs Auto-Docketed | I6: % of TOTAL InCourt | J6: % of TOTAL Informix | K6: % of TOTAL e-Filed | L6: Total % of Documents Auto Docketed
A7: AP | B7: APPEALS | D7: 0 | E7: 0 | F7: 0 | G7: 0 | H7: =E7+F7+G7 -> 0 | I7: =E7/D7 ->  | J7: =F7/D7 ->  | K7: =G7/D7 ->  | L7: =SUM(I7:K7) -> 
A8: CA | B8: CIRCUIT CIVIL | D8: 0 | E8: 0 | F8: 0 | G8: 0 | H8: =E8+F8+G8 -> 0 | I8: =E8/D8 ->  | J8: =F8/D8 ->  | K8: =G8/D8 ->  | L8: =SUM(I8:K8) -> 
A9: SC | B9: COUNTY CIVIL SMALL CLAIMS | D9: 0 | E9: 0 | F9: 0 | G9: 0 | H9: 0
A10: DR | B10: CIRCUIT CIVIL FAMILY | D10: 0 | E10: 0 | F10: 0 | G10: 0 | H10: 0
A11: CP | B11: CIRCUIT CIVIL PROBATE | D11: 0 | E11: 0 | F11: 0 | G11: 0 | H11: 0
A12: GA | B12: CIRCUIT CIVIL GUARDIANSHIP | D12: 0 | E12: 0 | F12: 0 | G12: 0 | H12: 0
A13: MH | B13: CIRCUIT CIVIL MENTAL HEALTH | D13: 0 | E13: 0 | F13: 0 | G13: 0 | H13: 0
A14: CC | B14: COUNTY CIVIL | D14: 0 | E14: 0 | F14: 0 | G14: 0 | H14: 0
A15: DP | B15: CIRCUIT JUVENILE DEPENDENCY | D15: 0 | E15: 0 | F15: 0 | G15: 0 | H15: 0
A16: TOTAL OF CIVIL DOCUMENTS | D16: =SUM(D7:D15) -> 0 | E16: =SUM(E7:E15) -> 0 | F16: =SUM(F7:F15) -> 0 | G16: =SUM(G7:G15) -> 0 | H16: =SUM(H7:H15) -> 0 | I16: =E16/D16 -> 
A18: CJ | B18: CIRCUIT JUVENILE DELINQUENCY | D18: 0 | E18: 0 | F18: 0 | G18: 0 | H18: =SUM(E18:G18) -> 0 | I18: =E18/D18 ->  | J18: =F18/D18 ->  | K18: =G18/D18 ->  | L18: =H18/D18 -> 
A19: CF | B19: CIRCUIT CRIMINAL FELONY | D19: 0 | E19: 0 | F19: 0 | G19: 0 | H19: =SUM(E19:G19) -> 0 | J19: =F19/D19 ->  | K19: =G19/D19 ->  | L19: =H19/D19 -> 
A20: MM | B20: COUNTY CRIMINAL MISDEMEANOR | D20: 0 | E20: 0 | F20: 0 | G20: 0 | H20: 0
A21: CO | B21: COUNTY ORDINANCE | D21: 0 | E21: 0 | F21: 0 | G21: 0 | H21: 0
A22: MO | B22: COUNTY COURT MUNICIPAL ORDINANCE | D22: 0 | E22: 0 | F22: 0 | G22: 0 | H22: 0
A23: IN | B23: COUNTY COURT INFRACTIONS | D23: 0 | E23: 0 | F23: 0 | G23: 0 | H23: 0
A24: CT | B24: COUNTY CRIMINAL TRAFFIC | D24: 0 | E24: 0 | F24: 0 | G24: 0 | H24: 0
A25: TOTAL OF CRIMINAL DOCUMENTS | D25: =SUM(D18:D24) -> 0 | E25: =SUM(E18:E24) -> 0 | F25: =SUM(F18:F24) -> 0 | G25: =SUM(G18:G24) -> 0 | H25: =SUM(E25:G25) -> 0
A27: TR | B27: COUNTY CIVIL TRAFFIC | D27: 0 | E27: 0 | F27: 0 | G27: 0 | H27: 0 | I27: =E27/D27 ->  | J27: =F27/D27 ->  | K27: =G27/D27 ->  | L27: =H27/D27 -> 
A29: TOTAL ALL COURT DOCUMENTS | D29: =D16+D25+D27 -> 0 | E29: =E16+E25+E27 -> 0 | F29: =F16+F25+F27 -> 0 | G29: =G16+G25+G27 -> 0 | H29: =SUM(E29:G29) -> 0 | I29: =E29/D29 ->  | J29: =F29/D29 ->  | K29: =G29/D29 ->  | L29: =H29/D29 -> 

Sheet NOV15
A1: CLERK OF THE COURTS
A2: BREVARD COUNTY, FLORIDA
A3: Document Source Statistics November 2015
A4: Number of Documents Filed by Case Category
A6: Case | B6: Category | D6: Total # of Documents Filed | E6: Documents Filed InCourt | F6: Documents Filed Informix | G6: Documents e-Filed | H6: Total Docs Auto-Docketed | I6: % of TOTAL InCourt | J6: % of TOTAL Informix | K6: % of TOTAL e-Filed | L6: Total % of Documents Auto Docketed
A7: AP | B7: APPEALS | D7: 0 | E7: 0 | F7: 0 | G7: 0 | H7: =E7+F7+G7 -> 0 | I7: =E7/D7 ->  | J7: =F7/D7 ->  | K7: =G7/D7 ->  | L7: =SUM(I7:K7) -> 
A8: CA | B8: CIRCUIT CIVIL | D8: 0 | E8: 0 | F8: 0 | G8: 0 | H8: =E8+F8+G8 -> 0 | I8: =E8/D8 ->  | J8: =F8/D8 ->  | K8: =G8/D8 ->  | L8: =SUM(I8:K8) -> 
A9: SC | B9: COUNTY CIVIL SMALL CLAIMS | D9: 0 | E9: 0 | F9: 0 | G9: 0 | H9: 0
A10: DR | B10: CIRCUIT CIVIL FAMILY | D10: 0 | E10: 0 | F10: 0 | G10: 0 | H10: 0
A11: CP | B11: CIRCUIT CIVIL PROBATE | D11: 0 | E11: 0 | F11: 0 | G11: 0 | H11: 0
A12: GA | B12: CIRCUIT CIVIL GUARDIANSHIP | D12: 0 | E12: 0 | F12: 0 | G12: 0 | H12: 0
A13: MH | B13: CIRCUIT CIVIL MENTAL HEALTH | D13: 0 | E13: 0 | F13: 0 | G13: 0 | H13: 0
A14: CC | B14: COUNTY CIVIL | D14: 0 | E14: 0 | F14: 0 | G14: 0 | H14: 0
A15: DP | B15: CIRCUIT JUVENILE DEPENDENCY | D15: 0 | E15: 0 | F15: 0 | G15: 0 | H15: 0
A16: TOTAL OF CIVIL DOCUMENTS | D16: =SUM(D7:D15) -> 0 | E16: =SUM(E7:E15) -> 0 | F16: =SUM(F7:F15) -> 0 | G16: =SUM(G7:G15) -> 0 | H16: =SUM(H7:H15) -> 0 | I16: =E16/D16 -> 
A18: CJ | B18: CIRCUIT JUVENILE DELINQUENCY | D18: 0 | E18: 0 | F18: 0 | G18: 0 | H18: =SUM(E18:G18) -> 0 | I18: =E18/D18 ->  | J18: =F18/D18 ->  | K18: =G18/D18 ->  | L18: =H18/D18 -> 
A19: CF | B19: CIRCUIT CRIMINAL FELONY | D19: 0 | E19: 0 | F19: 0 | G19: 0 | H19: =SUM(E19:G19) -> 0 | J19: =F19/D19 ->  | K19: =G19/D19 ->  | L19: =H19/D19 -> 
A20: MM | B20: COUNTY CRIMINAL MISDEMEANOR | D20: 0 | E20: 0 | F20: 0 | G20: 0 | H20: 0
A21: CO | B21: COUNTY ORDINANCE | D21: 0 | E21: 0 | F21: 0 | G21: 0 | H21: 0
A22: MO | B22: COUNTY COURT MUNICIPAL ORDINANCE | D22: 0 | E22: 0 | F22: 0 | G22: 0 | H22: 0
A23: IN | B23: COUNTY COURT INFRACTIONS | D23: 0 | E23: 0 | F23: 0 | G23: 0 | H23: 0
A24: CT | B24: COUNTY CRIMINAL TRAFFIC | D24: 0 | E24: 0 | F24: 0 | G24: 0 | H24: 0
A25: TOTAL OF CRIMINAL DOCUMENTS | D25: =SUM(D18:D24) -> 0 | E25: =SUM(E18:E24) -> 0 | F25: =SUM(F18:F24) -> 0 | G25: =SUM(G18:G24) -> 0 | H25: =SUM(E25:G25) -> 0
A27: TR | B27: COUNTY CIVIL TRAFFIC | D27: 0 | E27: 0 | F27: 0 | G27: 0 | H27: 0 | I27: =E27/D27 ->  | J27: =F27/D27 ->  | K27: =G27/D27 ->  | L27: =H27/D27 -> 
A29: TOTAL ALL COURT DOCUMENTS | D29: =D16+D25+D27 -> 0 | E29: =E16+E25+E27 -> 0 | F29: =F16+F25+F27 -> 0 | G29: =G16+G25+G27 -> 0 | H29: =SUM(E29:G29) -> 0 | I29: =E29/D29 ->  | J29: =F29/D29 ->  | K29: =G29/D29 ->  | L29: =H29/D29 -> 

Sheet DEC15
A1: CLERK OF THE COURTS
A2: BREVARD COUNTY, FLORIDA
A3: Document Source Statistics December 2015
A4: Number of Documents Filed by Case Category
A6: Case | B6: Category | D6: Total # of Documents Filed | E6: Documents Filed InCourt | F6: Documents Filed Informix | G6: Documents e-Filed | H6: Total Docs Auto-Docketed | I6: % of TOTAL InCourt | J6: % of TOTAL Informix | K6: % of TOTAL e-Filed | L6: Total % of Documents Auto Docketed
A7: AP | B7: APPEALS | D7: 0 | E7: 0 | F7: 0 | G7: 0 | H7: =E7+F7+G7 -> 0 | I7: =E7/D7 ->  | J7: =F7/D7 ->  | K7: =G7/D7 ->  | L7: =SUM(I7:K7) -> 
A8: CA | B8: CIRCUIT CIVIL | D8: 0 | E8: 0 | F8: 0 | G8: 0 | H8: =E8+F8+G8 -> 0 | I8: =E8/D8 ->  | J8: =F8/D8 ->  | K8: =G8/D8 ->  | L8: =SUM(I8:K8) -> 
A9: SC | B9: COUNTY CIVIL SMALL CLAIMS | D9: 0 | E9: 0 | F9: 0 | G9: 0 | H9: 0
A10: DR | B10: CIRCUIT CIVIL FAMILY | D10: 0 | E10: 0 | F10: 0 | G10: 0 | H10: 0
A11: CP | B11: CIRCUIT CIVIL PROBATE | D11: 0 | E11: 0 | F11: 0 | G11: 0 | H11: 0
A12: GA | B12: CIRCUIT CIVIL GUARDIANSHIP | D12: 0 | E12: 0 | F12: 0 | G12: 0 | H12: 0
A13: MH | B13: CIRCUIT CIVIL MENTAL HEALTH | D13: 0 | E13: 0 | F13: 0 | G13: 0 | H13: 0
A14: CC | B14: COUNTY CIVIL | D14: 0 | E14: 0 | F14: 0 | G14: 0 | H14: 0
A15: DP | B15: CIRCUIT JUVENILE DEPENDENCY | D15: 0 | E15: 0 | F15: 0 | G15: 0 | H15: 0
A16: TOTAL OF CIVIL DOCUMENTS | D16: =SUM(D7:D15) -> 0 | E16: =SUM(E7:E15) -> 0 | F16: =SUM(F7:F15) -> 0 | G16: =SUM(G7:G15) -> 0 | H16: =SUM(H7:H15) -> 0 | I16: =E16/D16 -> 
A18: CJ | B18: CIRCUIT JUVENILE DELINQUENCY | D18: 0 | E18: 0 | F18: 0 | G18: 0 | H18: =SUM(E18:G18) -> 0 | I18: =E18/D18 ->  | J18: =F18/D18 ->  | K18: =G18/D18 ->  | L18: =H18/D18 -> 
A19: CF | B19: CIRCUIT CRIMINAL FELONY | D19: 0 | E19: 0 | F19: 0 | G19: 0 | H19: =SUM(E19:G19) -> 0 | J19: =F19/D19 ->  | K19: =G19/D19 ->  | L19: =H19/D19 -> 
A20: MM | B20: COUNTY CRIMINAL MISDEMEANOR | D20: 0 | E20: 0 | F20: 0 | G20: 0 | H20: 0
A21: CO | B21: COUNTY ORDINANCE | D21: 0 | E21: 0 | F21: 0 | G21: 0 | H21: 0
A22: MO | B22: COUNTY COURT MUNICIPAL ORDINANCE | D22: 0 | E22: 0 | F22: 0 | G22: 0 | H22: 0
A23: IN | B23: COUNTY COURT INFRACTIONS | D23: 0 | E23: 0 | F23: 0 | G23: 0 | H23: 0
A24: CT | B24: COUNTY CRIMINAL TRAFFIC | D24: 0 | E24: 0 | F24: 0 | G24: 0 | H24: 0
A25: TOTAL OF CRIMINAL DOCUMENTS | D25: =SUM(D18:D24) -> 0 | E25: =SUM(E18:E24) -> 0 | F25: =SUM(F18:F24) -> 0 | G25: =SUM(G18:G24) -> 0 | H25: =SUM(E25:G25) -> 0
A27: TR | B27: COUNTY CIVIL TRAFFIC | D27: 0 | E27: 0 | F27: 0 | G27: 0 | H27: 0 | I27: =E27/D27 ->  | J27: =F27/D27 ->  | K27: =G27/D27 ->  | L27: =H27/D27 -> 
A29: TOTAL ALL COURT DOCUMENTS | D29: =D16+D25+D27 -> 0 | E29: =E16+E25+E27 -> 0 | F29: =F16+F25+F27 -> 0 | G29: =G16+G25+G27 -> 0 | H29: =SUM(E29:G29) -> 0 | I29: =E29/D29 ->  | J29: =F29/D29 ->  | K29: =G29/D29 ->  | L29: =H29/D29 -> 

Sheet SUMMARY15
A1: CLERK OF THE COURTS
A2: BREVARD COUNTY, FLORIDA
A3: Document Source Statistics January 1, 2015 - December 31, 2015
A4: Number of Documents Filed by Case Category
A6: Case | B6: Category | D6: Total # of Documents Filed | E6: Documents Filed InCourt | F6: Documents Filed Informix | G6: Documents e-Filed | H6: Total Docs Auto-Docketed | I6: % of TOTAL InCourt | J6: % of TOTAL Informix | K6: % of TOTAL e-Filed | L6: Total % of Documents Auto Docketed
A7: AP | B7: APPEALS | D7: ='JAN15'!D7+'FEB15'!D7+'MAR15'!D7+'APR15'!D7+'MAY15'!D7+'JUN15'!D7+'JUL15'!D7+'AUG15'!D7+'SEP15'!D7+'OCT15'!D7+'NOV15'!D7+'DEC15'!D7 -> 613 | E7: 0 | F7: ='JAN15'!F7+'FEB15'!F7+'MAR15'!F7+'APR15'!F7+'MAY15'!F7+'JUN15'!F7+'JUL15'!F7+'AUG15'!F7+'SEP15'!F7+'OCT15'!F7+'NOV15'!F7+'DEC15'!F7 -> 0 | G7: ='JAN15'!G7+'FEB15'!G7+'MAR15'!G7+'APR15'!G7+'MAY15'!G7+'JUN15'!G7+'JUL15'!G7+'AUG15'!G7+'SEP15'!G7+'OCT15'!G7+'NOV15'!G7+'DEC15'!G7 -> 421 | H7: =E7+F7+G7 -> 421 | I7: =E7/D7 -> 0 | J7: =F7/D7 -> 0 | K7: =G7/D7 -> 0.6867862969 | L7: =SUM(I7:K7) -> 0.6867862969
A8: CA | B8: CIRCUIT CIVIL | D8: ='JAN15'!D8+'FEB15'!D8+'MAR15'!D8+'APR15'!D8+'MAY15'!D8+'JUN15'!D8+'JUL15'!D8+'AUG15'!D8+'SEP15'!D8+'OCT15'!D8+'NOV15'!D8+'DEC15'!D8 -> 208886 | E8: ='JAN15'!E8+'FEB15'!E8+'MAR15'!E8+'APR15'!E8+'MAY15'!E8+'JUN15'!E8+'JUL15'!E8+'AUG15'!E8+'SEP15'!E8+'OCT15'!E8+'NOV15'!E8+'DEC15'!E8 -> 0 | F8: ='JAN15'!F8+'FEB15'!F8+'MAR15'!F8+'APR15'!F8+'MAY15'!F8+'JUN15'!F8+'JUL15'!F8+'AUG15'!F8+'SEP15'!F8+'OCT15'!F8+'NOV15'!F8+'DEC15'!F8 -> 1 | G8: ='JAN15'!G8+'FEB15'!G8+'MAR15'!G8+'APR15'!G8+'MAY15'!G8+'JUN15'!G8+'JUL15'!G8+'AUG15'!G8+'SEP15'!G8+'OCT15'!G8+'NOV15'!G8+'DEC15'!G8 -> 143562 | H8: =E8+F8+G8 -> 143563 | I8: =E8/D8 -> 0 | J8: =F8/D8 -> 4.78730025e-06 | K8: =G8/D8 -> 0.6872743985 | L8: =SUM(I8:K8) -> 0.6872791858
A9: SC | B9: COUNTY CIVIL SMALL CLAIMS | D9: ='JAN15'!D9+'FEB15'!D9+'MAR15'!D9+'APR15'!D9+'MAY15'!D9+'JUN15'!D9+'JUL15'!D9+'AUG15'!D9+'SEP15'!D9+'OCT15'!D9+'NOV15'!D9+'DEC15'!D9 -> 36669 | E9: ='JAN15'!E9+'FEB15'!E9+'MAR15'!E9+'APR15'!E9+'MAY15'!E9+'JUN15'!E9+'JUL15'!E9+'AUG15'!E9+'SEP15'!E9+'OCT15'!E9+'NOV15'!E9+'DEC15'!E9 -> 0 | F9: ='JAN15'!F9+'FEB15'!F9+'MAR15'!F9+'APR15'!F9+'MAY15'!F9+'JUN15'!F9+'JUL15'!F9+'AUG15'!F9+'SEP15'!F9+'OCT15'!F9+'NOV15'!F9+'DEC15'!F9 -> 0 | G9: ='JAN15'!G9+'FEB15'!G9+'MAR15'!G9+'APR15'!G9+'MAY15'!G9+'JUN15'!G9+'JUL15'!G9+'AUG15'!G9+'SEP15'!G9+'OCT15'!G9+'NOV15'!G9+'DEC15'!G9 -> 25795 | H9: 25795 | I9: 0 | J9: 0 | K9: 0.7034552347 | L9: 0.7034552347
A10: DR | B10: CIRCUIT CIVIL FAMILY | D10: ='JAN15'!D10+'FEB15'!D10+'MAR15'!D10+'APR15'!D10+'MAY15'!D10+'JUN15'!D10+'JUL15'!D10+'AUG15'!D10+'SEP15'!D10+'OCT15'!D10+'NOV15'!D10+'DEC15'!D10 -> 134268 | E10: ='JAN15'!E10+'FEB15'!E10+'MAR15'!E10+'APR15'!E10+'MAY15'!E10+'JUN15'!E10+'JUL15'!E10+'AUG15'!E10+'SEP15'!E10+'OCT15'!E10+'NOV15'!E10+'DEC15'!E10 -> 0 | F10: ='JAN15'!F8+'FEB15'!F8+'MAR15'!F8+'APR15'!F8+'MAY15'!F8+'JUN15'!F8+'JUL15'!F8+'AUG15'!F8+'SEP15'!F8+'OCT15'!F8+'NOV15'!F8+'DEC15'!F8 -> 1 | G10: ='JAN15'!G10+'FEB15'!G10+'MAR15'!G10+'APR15'!G10+'MAY15'!G10+'JUN15'!G10+'JUL15'!G10+'AUG15'!G10+'SEP15'!G10+'OCT15'!G10+'NOV15'!G10+'DEC15'!G10 -> 52974 | H10: 52975 | I10: 0 | J10: 7.447790985e-06 | K10: 0.3945392796 | L10: 0.3945467274
A11: CP | B11: CIRCUIT CIVIL PROBATE | D11: ='JAN15'!D11+'FEB15'!D11+'MAR15'!D11+'APR15'!D11+'MAY15'!D11+'JUN15'!D11+'JUL15'!D11+'AUG15'!D11+'SEP15'!D11+'OCT15'!D11+'NOV15'!D11+'DEC15'!D11 -> 37427 | E11: ='JAN15'!E11+'FEB15'!E11+'MAR15'!E11+'APR15'!E11+'MAY15'!E11+'JUN15'!E11+'JUL15'!E11+'AUG15'!E11+'SEP15'!E11+'OCT15'!E11+'NOV15'!E11+'DEC15'!E11 -> 0 | F11: ='JAN15'!F11+'FEB15'!F11+'MAR15'!F11+'APR15'!F11+'MAY15'!F11+'JUN15'!F11+'JUL15'!F11+'AUG15'!F11+'SEP15'!F11+'OCT15'!F11+'NOV15'!F11+'DEC15'!F11 -> 0 | G11: ='JAN15'!G11+'FEB15'!G11+'MAR15'!G11+'APR15'!G11+'MAY15'!G11+'JUN15'!G11+'JUL15'!G11+'AUG15'!G11+'SEP15'!G11+'OCT15'!G11+'NOV15'!G11+'DEC15'!G11 -> 29998 | H11: 29998 | I11: 0 | J11: 0 | K11: 0.8015069335 | L11: 0.8015069335
A12: GA | B12: CIRCUIT CIVIL GUARDIANSHIP | D12: ='JAN15'!D12+'FEB15'!D12+'MAR15'!D12+'APR15'!D12+'MAY15'!D12+'JUN15'!D12+'JUL15'!D12+'AUG15'!D12+'SEP15'!D12+'OCT15'!D12+'NOV15'!D12+'DEC15'!D12 -> 14037 | E12: ='JAN15'!E12+'FEB15'!E12+'MAR15'!E12+'APR15'!E12+'MAY15'!E12+'JUN15'!E12+'JUL15'!E12+'AUG15'!E12+'SEP15'!E12+'OCT15'!E12+'NOV15'!E12+'DEC15'!E12 -> 0 | F12: ='JAN15'!F12+'FEB15'!F12+'MAR15'!F12+'APR15'!F12+'MAY15'!F12+'JUN15'!F12+'JUL15'!F12+'AUG15'!F12+'SEP15'!F12+'OCT15'!F12+'NOV15'!F12+'DEC15'!F12 -> 0 | G12: ='JAN15'!G12+'FEB15'!G12+'MAR15'!G12+'APR15'!G12+'MAY15'!G12+'JUN15'!G12+'JUL15'!G12+'AUG15'!G12+'SEP15'!G12+'OCT15'!G12+'NOV15'!G12+'DEC15'!G12 -> 11711 | H12: 11711 | I12: 0 | J12: 0 | K12: 0.8342950773 | L12: 0.8342950773
A13: MH | B13: CIRCUIT CIVIL MENTAL HEALTH | D13: ='JAN15'!D13+'FEB15'!D13+'MAR15'!D13+'APR15'!D13+'MAY15'!D13+'JUN15'!D13+'JUL15'!D13+'AUG15'!D13+'SEP15'!D13+'OCT15'!D13+'NOV15'!D13+'DEC15'!D13 -> 7001 | E13: ='JAN15'!E13+'FEB15'!E13+'MAR15'!E13+'APR15'!E13+'MAY15'!E13+'JUN15'!E13+'JUL15'!E13+'AUG15'!E13+'SEP15'!E13+'OCT15'!E13+'NOV15'!E13+'DEC15'!E13 -> 0 | F13: ='JAN15'!F13+'FEB15'!F13+'MAR15'!F13+'APR15'!F13+'MAY15'!F13+'JUN15'!F13+'JUL15'!F13+'AUG15'!F13+'SEP15'!F13+'OCT15'!F13+'NOV15'!F13+'DEC15'!F13 -> 0 | G13: ='JAN15'!G13+'FEB15'!G13+'MAR15'!G13+'APR15'!G13+'MAY15'!G13+'JUN15'!G13+'JUL15'!G13+'AUG15'!G13+'SEP15'!G13+'OCT15'!G13+'NOV15'!G13+'DEC15'!G13 -> 4852 | H13: 4852 | I13: 0 | J13: 0 | K13: 0.6930438509 | L13: 0.6930438509
A14: CC | B14: COUNTY CIVIL | D14: ='JAN15'!D14+'FEB15'!D14+'MAR15'!D14+'APR15'!D14+'MAY15'!D14+'JUN15'!D14+'JUL15'!D14+'AUG15'!D14+'SEP15'!D14+'OCT15'!D14+'NOV15'!D14+'DEC15'!D14 -> 45784 | E14: ='JAN15'!E14+'FEB15'!E14+'MAR15'!E14+'APR15'!E14+'MAY15'!E14+'JUN15'!E14+'JUL15'!E14+'AUG15'!E14+'SEP15'!E14+'OCT15'!E14+'NOV15'!E14+'DEC15'!E14 -> 0 | F14: ='JAN15'!F14+'FEB15'!F14+'MAR15'!F14+'APR15'!F14+'MAY15'!F14+'JUN15'!F14+'JUL15'!F14+'AUG15'!F14+'SEP15'!F14+'OCT15'!F14+'NOV15'!F14+'DEC15'!F14 -> 0 | G14: ='JAN15'!G14+'FEB15'!G14+'MAR15'!G14+'APR15'!G14+'MAY15'!G14+'JUN15'!G14+'JUL15'!G14+'AUG15'!G14+'SEP15'!G14+'OCT15'!G14+'NOV15'!G14+'DEC15'!G14 -> 21306 | H14: 21306 | I14: 0 | J14: 0 | K14: 0.4653590774 | L14: 0.4653590774
A15: DP | B15: CIRCUIT JUVENILE DEPENDENCY | D15: ='JAN15'!D15+'FEB15'!D15+'MAR15'!D15+'APR15'!D15+'MAY15'!D15+'JUN15'!D15+'JUL15'!D15+'AUG15'!D15+'SEP15'!D15+'OCT15'!D15+'NOV15'!D15+'DEC15'!D15 -> 23105 | E15: ='JAN15'!E15+'FEB15'!E15+'MAR15'!E15+'APR15'!E15+'MAY15'!E15+'JUN15'!E15+'JUL15'!E15+'AUG15'!E15+'SEP15'!E15+'OCT15'!E15+'NOV15'!E15+'DEC15'!E15 -> 0 | F15: ='JAN15'!F15+'FEB15'!F15+'MAR15'!F15+'APR15'!F15+'MAY15'!F15+'JUN15'!F15+'JUL15'!F15+'AUG15'!F15+'SEP15'!F15+'OCT15'!F15+'NOV15'!F15+'DEC15'!F15 -> 0 | G15: ='JAN15'!G15+'FEB15'!G15+'MAR15'!G15+'APR15'!G15+'MAY15'!G15+'JUN15'!G15+'JUL15'!G15+'AUG15'!G15+'SEP15'!G15+'OCT15'!G15+'NOV15'!G15+'DEC15'!G15 -> 10134 | H15: 10134 | I15: 0 | J15: 0 | K15: 0.4386063623 | L15: 0.4386063623
A16: TOTAL OF CIVIL DOCUMENTS | D16: =SUM(D7:D15) -> 507790 | E16: =SUM(E7:E15) -> 0 | F16: =SUM(F7:F15) -> 2 | G16: =SUM(G7:G15) -> 300753 | H16: =SUM(H7:H15) -> 300755 | I16: =E16/D16 -> 0 | J16: =F16/D16 -> 3.93863605e-06 | K16: 0.592278304 | L16: 0.5922822427
A18: CJ | B18: CIRCUIT JUVENILE DELINQUENCY | D18: ='JAN15'!D18+'FEB15'!D18+'MAR15'!D18+'APR15'!D18+'MAY15'!D18+'JUN15'!D18+'JUL15'!D18+'AUG15'!D18+'SEP15'!D18+'OCT15'!D18+'NOV15'!D18+'DEC15'!D18 -> 53287 | E18: ='JAN15'!E18+'FEB15'!E18+'MAR15'!E18+'APR15'!E18+'MAY15'!E18+'JUN15'!E18+'JUL15'!E18+'AUG15'!E18+'SEP15'!E18+'OCT15'!E18+'NOV15'!E18+'DEC15'!E18 -> 36151 | F18: ='JAN15'!F18+'FEB15'!F18+'MAR15'!F18+'APR15'!F18+'MAY15'!F18+'JUN15'!F18+'JUL15'!F18+'AUG15'!F18+'SEP15'!F18+'OCT15'!F18+'NOV15'!F18+'DEC15'!F18 -> 2 | G18: ='JAN15'!G18+'FEB15'!G18+'MAR15'!G18+'APR15'!G18+'MAY15'!G18+'JUN15'!G18+'JUL15'!G18+'AUG15'!G18+'SEP15'!G18+'OCT15'!G18+'NOV15'!G18+'DEC15'!G18 -> 8443 | H18: =SUM(E18:G18) -> 44596 | I18: =E18/D18 -> 0.6784206279 | J18: =F18/D18 -> 3.753260645e-05 | K18: =G18/D18 -> 0.1584438981 | L18: =H18/D18 -> 0.8369020587
A19: CF | B19: CIRCUIT CRIMINAL FELONY | D19: ='JAN15'!D19+'FEB15'!D19+'MAR15'!D19+'APR15'!D19+'MAY15'!D19+'JUN15'!D19+'JUL15'!D19+'AUG15'!D19+'SEP15'!D19+'OCT15'!D19+'NOV15'!D19+'DEC15'!D19 -> 241631 | E19: ='JAN15'!E19+'FEB15'!E19+'MAR15'!E19+'APR15'!E19+'MAY15'!E19+'JUN15'!E19+'JUL15'!E19+'AUG15'!E19+'SEP15'!E19+'OCT15'!E19+'NOV15'!E19+'DEC15'!E19 -> 90341 | F19: ='JAN15'!F19+'FEB15'!F19+'MAR15'!F19+'APR15'!F19+'MAY15'!F19+'JUN15'!F19+'JUL15'!F19+'AUG15'!F19+'SEP15'!F19+'OCT15'!F19+'NOV15'!F19+'DEC15'!F19 -> 3040 | G19: ='JAN15'!G19+'FEB15'!G19+'MAR15'!G19+'APR15'!G19+'MAY15'!G19+'JUN15'!G19+'JUL15'!G19+'AUG15'!G19+'SEP15'!G19+'OCT15'!G19+'NOV15'!G19+'DEC15'!G19 -> 50628 | H19: =SUM(E19:G19) -> 144009 | I19: 0.3738800071 | J19: =F19/D19 -> 0.01258116715 | K19: =G19/D19 -> 0.2095260956 | L19: =H19/D19 -> 0.5959872698
A20: MM | B20: COUNTY CRIMINAL MISDEMEANOR | D20: ='JAN15'!D20+'FEB15'!D20+'MAR15'!D20+'APR15'!D20+'MAY15'!D20+'JUN15'!D20+'JUL15'!D20+'AUG15'!D20+'SEP15'!D20+'OCT15'!D20+'NOV15'!D20+'DEC15'!D20 -> 127725 | E20: ='JAN15'!E20+'FEB15'!E20+'MAR15'!E20+'APR15'!E20+'MAY15'!E20+'JUN15'!E20+'JUL15'!E20+'AUG15'!E20+'SEP15'!E20+'OCT15'!E20+'NOV15'!E20+'DEC15'!E20 -> 76134 | F20: ='JAN15'!F20+'FEB15'!F20+'MAR15'!F20+'APR15'!F20+'MAY15'!F20+'JUN15'!F20+'JUL15'!F20+'AUG15'!F20+'SEP15'!F20+'OCT15'!F20+'NOV15'!F20+'DEC15'!F20 -> 1538 | G20: ='JAN15'!G20+'FEB15'!G20+'MAR15'!G20+'APR15'!G20+'MAY15'!G20+'JUN15'!G20+'JUL15'!G20+'AUG15'!G20+'SEP15'!G20+'OCT15'!G20+'NOV15'!G20+'DEC15'!G20 -> 19351 | H20: 97023 | I20: 0.5960775103 | J20: 0.0120414954 | K20: 0.1515051869 | L20: 0.7596241926
A21: CO | B21: COUNTY ORDINANCE | D21: ='JAN15'!D21+'FEB15'!D21+'MAR15'!D21+'APR15'!D21+'MAY15'!D21+'JUN15'!D21+'JUL15'!D21+'AUG15'!D21+'SEP15'!D21+'OCT15'!D21+'NOV15'!D21+'DEC15'!D21 -> 669 | E21: ='JAN15'!E21+'FEB15'!E21+'MAR15'!E21+'APR15'!E21+'MAY15'!E21+'JUN15'!E21+'JUL15'!E21+'AUG15'!E21+'SEP15'!E21+'OCT15'!E21+'NOV15'!E21+'DEC15'!E21 -> 428 | F21: ='JAN15'!F21+'FEB15'!F21+'MAR15'!F21+'APR15'!F21+'MAY15'!F21+'JUN15'!F21+'JUL15'!F21+'AUG15'!F21+'SEP15'!F21+'OCT15'!F21+'NOV15'!F21+'DEC15'!F21 -> 11 | G21: ='JAN15'!G21+'FEB15'!G21+'MAR15'!G21+'APR15'!G21+'MAY15'!G21+'JUN15'!G21+'JUL15'!G21+'AUG15'!G21+'SEP15'!G21+'OCT15'!G21+'NOV15'!G21+'DEC15'!G21 -> 82 | H21: 521 | I21: 0.6397608371 | J21: 0.01644245142 | K21: 0.1225710015 | L21: 0.77877429
A22: MO | B22: COUNTY COURT MUNICIPAL ORDINANCE | D22: ='JAN15'!D22+'FEB15'!D22+'MAR15'!D22+'APR15'!D22+'MAY15'!D22+'JUN15'!D22+'JUL15'!D22+'AUG15'!D22+'SEP15'!D22+'OCT15'!D22+'NOV15'!D22+'DEC15'!D22 -> 2193 | E22: ='JAN15'!E22+'FEB15'!E22+'MAR15'!E22+'APR15'!E22+'MAY15'!E22+'JUN15'!E22+'JUL15'!E22+'AUG15'!E22+'SEP15'!E22+'OCT15'!E22+'NOV15'!E22+'DEC15'!E22 -> 1411 | F22: ='JAN15'!F22+'FEB15'!F22+'MAR15'!F22+'APR15'!F22+'MAY15'!F22+'JUN15'!F22+'JUL15'!F22+'AUG15'!F22+'SEP15'!F22+'OCT15'!F22+'NOV15'!F22+'DEC15'!F22 -> 100 | G22: ='JAN15'!G22+'FEB15'!G22+'MAR15'!G22+'APR15'!G22+'MAY15'!G22+'JUN15'!G22+'JUL15'!G22+'AUG15'!G22+'SEP15'!G22+'OCT15'!G22+'NOV15'!G22+'DEC15'!G22 -> 242 | H22: 1753 | I22: 0.6434108527 | J22: 0.0455996352 | K22: 0.1103511172 | L22: 0.7993616051
A23: IN | B23: COUNTY COURT INFRACTIONS | D23: ='JAN15'!D23+'FEB15'!D23+'MAR15'!D23+'APR15'!D23+'MAY15'!D23+'JUN15'!D23+'JUL15'!D23+'AUG15'!D23+'SEP15'!D23+'OCT15'!D23+'NOV15'!D23+'DEC15'!D23 -> 3304 | E23: ='JAN15'!E23+'FEB15'!E23+'MAR15'!E23+'APR15'!E23+'MAY15'!E23+'JUN15'!E23+'JUL15'!E23+'AUG15'!E23+'SEP15'!E23+'OCT15'!E23+'NOV15'!E23+'DEC15'!E23 -> 193 | F23: ='JAN15'!F23+'FEB15'!F23+'MAR15'!F23+'APR15'!F23+'MAY15'!F23+'JUN15'!F23+'JUL15'!F23+'AUG15'!F23+'SEP15'!F23+'OCT15'!F23+'NOV15'!F23+'DEC15'!F23 -> 2 | G23: ='JAN15'!G23+'FEB15'!G23+'MAR15'!G23+'APR15'!G23+'MAY15'!G23+'JUN15'!G23+'JUL15'!G23+'AUG15'!G23+'SEP15'!G23+'OCT15'!G23+'NOV15'!G23+'DEC15'!G23 -> 109 | H23: 304 | I23: 0.05841404358 | J23: 0.0006053268765 | K23: 0.03299031477 | L23: 0.09200968523
A24: CT | B24: COUNTY CRIMINAL TRAFFIC | D24: ='JAN15'!D24+'FEB15'!D24+'MAR15'!D24+'APR15'!D24+'MAY15'!D24+'JUN15'!D24+'JUL15'!D24+'AUG15'!D24+'SEP15'!D24+'OCT15'!D24+'NOV15'!D24+'DEC15'!D24 -> 100269 | E24: ='JAN15'!E24+'FEB15'!E24+'MAR15'!E24+'APR15'!E24+'MAY15'!E24+'JUN15'!E24+'JUL15'!E24+'AUG15'!E24+'SEP15'!E24+'OCT15'!E24+'NOV15'!E24+'DEC15'!E24 -> 57212 | F24: ='JAN15'!F24+'FEB15'!F24+'MAR15'!F24+'APR15'!F24+'MAY15'!F24+'JUN15'!F24+'JUL15'!F24+'AUG15'!F24+'SEP15'!F24+'OCT15'!F24+'NOV15'!F24+'DEC15'!F24 -> 2525 | G24: ='JAN15'!G24+'FEB15'!G24+'MAR15'!G24+'APR15'!G24+'MAY15'!G24+'JUN15'!G24+'JUL15'!G24+'AUG15'!G24+'SEP15'!G24+'OCT15'!G24+'NOV15'!G24+'DEC15'!G24 -> 11192 | H24: 70929 | I24: 0.570585126 | J24: 0.02518225972 | K24: 0.1116197429 | L24: 0.7073871286
A25: TOTAL OF CRIMINAL DOCUMENTS | D25: =SUM(D18:D24) -> 529078 | E25: =SUM(E18:E24) -> 261870 | F25: ='JAN15'!F25+'FEB15'!F25+'MAR15'!F25+'APR15'!F25+'MAY15'!F25+'JUN15'!F25+'JUL15'!F25+'AUG15'!F25+'SEP15'!F25+'OCT15'!F25+'NOV15'!F25+'DEC15'!F25 -> 7218 | G25: =SUM(G18:G24) -> 90047 | H25: =SUM(E25:G25) -> 359135 | I25: 0.4949553752 | J25: 0.0136426009 | K25: 0.1701960769 | L25: 0.6787940531
A27: TR | B27: COUNTY CIVIL TRAFFIC | D27: ='JAN15'!D27+'FEB15'!D27+'MAR15'!D27+'APR15'!D27+'MAY15'!D27+'JUN15'!D27+'JUL15'!D27+'AUG15'!D27+'SEP15'!D27+'OCT15'!D27+'NOV15'!D27+'DEC15'!D27 -> 71480 | E27: ='JAN15'!E27+'FEB15'!E27+'MAR15'!E27+'APR15'!E27+'MAY15'!E27+'JUN15'!E27+'JUL15'!E27+'AUG15'!E27+'SEP15'!E27+'OCT15'!E27+'NOV15'!E27+'DEC15'!E27 -> 7351 | F27: ='JAN15'!F27+'FEB15'!F27+'MAR15'!F27+'APR15'!F27+'MAY15'!F27+'JUN15'!F27+'JUL15'!F27+'AUG15'!F27+'SEP15'!F27+'OCT15'!F27+'NOV15'!F27+'DEC15'!F27 -> 2 | G27: ='JAN15'!G27+'FEB15'!G27+'MAR15'!G27+'APR15'!G27+'MAY15'!G27+'JUN15'!G27+'JUL15'!G27+'AUG15'!G27+'SEP15'!G27+'OCT15'!G27+'NOV15'!G27+'DEC15'!G27 -> 2235 | H27: =SUM(E27:G27) -> 9588 | I27: =E27/D27 -> 0.1028399552 | J27: =F27/D27 -> 2.79798545e-05 | K27: =G27/D27 -> 0.03126748741 | L27: =H27/D27 -> 0.1341354225
A29: TOTAL ALL COURT DOCUMENTS | D29: =D16+D25+D27 -> 1108348 | E29: =E16+E25+E27 -> 269221 | F29: =F16+F25+F27 -> 7222 | G29: =G16+G25+G27 -> 393035 | H29: =SUM(E29:G29) -> 669478 | I29: =E29/D29 -> 0.2429029511 | J29: =F29/D29 -> 0.006516003999 | K29: =G29/D29 -> 0.3546133525 | L29: =H29/D29 -> 0.6040323075
